Cogmind - Beta 12 @@@ ROGUE MODE // 2023.03.24 @ 03:44:11 // Winter2019/RPGLIKE Player: Infomantis Result: Destroyed by Y-72 Warden with Quantum Rifle Performance ------------- Evolutions (9) 4500 Regions Visited (42) 8400 Robots Destroyed (687) 3435 Value Destroyed (43051) 43051 Prototype IDs (35) 700 Alien Tech Used (2) 400 Bonus (35331) 35331 TOTAL SCORE: 95817 Bonus ------- Triggered High Security 1000 High Alert Combat Kills 18479 Follower Combat Kills 4085 Entered Garrisons 1600 Entered DSFs 500 Network Hubs Disabled 200 Met Imprinter 300 Destroyed Z-Imprinter 1000 Met Warlord at Base 500 MAIN.C Attacked Warlord 500 Warlord Defense Kills 3700 A7 Reached Mainframe 300 Met R17 at Cetus 500 Met R17 at Research 2000 Met Warlord at Research 2000 Friendly Fire -1333 Cogmind --------- Core Integrity 0/1250 Matter 600/600 Energy 990/1050 System Corruption 8% Temperature Cool (4) Movement Walking (97) Location -1/Command Parts ------- > --- POWER (3) -------- Improved Quantum Reactor Improved Quantum Reactor Improved Quantum Reactor > --- PROPULSION (5) --- Advanced VSS Leg Enhanced Biometal Leg Enhanced Biometal Leg Enhanced Biometal Leg > --- UTILITY (9) ------ Advanced Target Analyzer Advanced Target Analyzer Experimental Core Analyzer Experimental Core Analyzer Recoil Nullifier Advanced Kinecellerator Advanced Transmission Jammer Advanced Force Field Long-range Tractor Beam > --- WEAPON (5) ------- Hypervelocity Mass Driver Graviton Cannon Graviton Cannon > --- INVENTORY (6) ---- Advanced Matter Compressor (400) Improved Terrain Scanner Antimissile System Antimissile System Subatomic Replicator Peak State ------------ > --- POWER ------------ Improved Quantum Reactor Improved Quantum Reactor Improved Quantum Reactor > --- PROPULSION ------- Advanced VSS Leg Advanced VSS Leg Enhanced Biometal Leg Enhanced Biometal Leg Enhanced Biometal Leg > --- UTILITY ---------- Advanced Cooling System Advanced Target Analyzer Experimental Core Analyzer Experimental Core Analyzer Recoil Nullifier Advanced Kinecellerator Advanced Transmission Jammer Advanced Force Field Advanced System Restoration Module > --- WEAPON ----------- Hypervelocity Mass Driver Hypervelocity Mass Driver Graviton Cannon Graviton Cannon Micro-nuke Launcher > --- INVENTORY -------- Advanced Matter Compressor Antimissile System Antimissile System Long-range Tractor Beam Subatomic Replicator [Rating: 185] Favorites ----------- Power Zionite Light DM Reactor Engine Cooled Ion Engine Power Core Neutrino Core Reactor Zionite Light DM Reactor Propulsion Biometal Leg Leg Biometal Leg Hover Unit Improved Hover Unit Flight Unit Flight Unit Utility Advanced Phase Shifter Device Advanced Phase Shifter Storage Zionite Biocell Processor Advanced Signal Interpreter Hackware Authchip [Propulsion] Protection Insulated Plating Weapon Hypervelocity Mass Driver Energy Gun Medium Laser Energy Cannon Advanced Plasma Cannon Ballistic Gun Assault Rifle Ballistic Cannon Hypervelocity Mass Driver Launcher Missile Launcher Impact Weapon Great Maul Slashing Weapon Katana Build | -11 -10 -10 -9 -8 -8 -8 -8 -7 -7 -7 -7 -7 -7 -7 -6 -6 -6 -6 -6 -6 -6 -5 -5 -5 -5 -4 -4 -4 -4 -4 -4 -4 -3 -3 -3 -3 -3 -2 -1 -1 -1 -1 ------- Run | Jun Mat Min Mat Mat Gar Mat Gar Fac Gar Fac Low Low Zio Dee Pro Fac Was Fac Gar Fac DSF Fac Upp Upp War Pro Fac Ext Cet Arc Hub Gar Res Gar Res Qua Gar Res Acc Gar Acc Com Slots Evolved 17 | 3 . . 1 2 1 . . 1 1 . . . . . . . . . . . 1 . . 1 . 1 1 . . 1 . 1 . . . . . . 1 1 . . Power 2 | . . . . . . . . . 1 . . . . . . . . . . . . . . . . . 1 . . . . . . . . . . . . . . . Propulsion 4 | 1 . . . 1 . . . . . . . . . . . . . . . . . . . . . 1 . . . . . 1 . . . . . . . . . . Utility 8 | 1 . . 1 1 1 . . . . . . . . . . . . . . . 1 . . 1 . . . . . 1 . . . . . . . . . 1 . . Weapon 3 | 1 . . . . . . . 1 . . . . . . . . . . . . . . . . . . . . . . . . . . . . . . 1 . . . Parts Attached 266 | 7 5 3 2 5 19 8 6 3 14 5 3 6 2 11 6 . 4 5 16 . 7 10 8 3 12 7 5 4 . 5 . 14 . 10 1 19 2 7 . 9 10 3 Power 28 | 1 . . . 3 . 3 . . 1 1 . 1 . 2 . . . . . . . . . . 1 . 1 2 . . . 3 . 1 . 5 . 2 . 1 . . Engine 9 | 1 . . . 3 . 3 . . 1 1 . . . . . . . . . . . . . . . . . . . . . . . . . . . . . . . . Core 2 | . . . . . . . . . . . . 1 . 1 . . . . . . . . . . . . . . . . . . . . . . . . . . . . Reactor 17 | . . . . . . . . . . . . . . 1 . . . . . . . . . . 1 . 1 2 . . . 3 . 1 . 5 . 2 . 1 . . Propulsion 36 | 2 2 . . . 7 3 . . 6 1 . . . 2 . . 2 . . . . . . . 1 2 . . . . . 4 . 3 . . . . . . 1 . Treads . | . . . . . . . . . . . . . . . . . . . . . . . . . . . . . . . . . . . . . . . . . . . Leg 32 | 2 . . . . 6 3 . . 6 1 . . . 1 . . 2 . . . . . . . 1 2 . . . . . 4 . 3 . . . . . . 1 . Wheel . | . . . . . . . . . . . . . . . . . . . . . . . . . . . . . . . . . . . . . . . . . . . Hover 3 | . 2 . . . . . . . . . . . . 1 . . . . . . . . . . . . . . . . . . . . . . . . . . . . Flight 1 | . . . . . 1 . . . . . . . . . . . . . . . . . . . . . . . . . . . . . . . . . . . . . Utility 130 | 2 . 2 1 . 3 2 3 . 2 3 2 5 . 5 4 . 2 5 10 . 5 4 7 3 6 3 3 2 . 5 . 5 . 4 . 12 . 5 . 6 6 3 Device 112 | 2 . 2 1 . 2 . 3 . 2 2 2 5 . 3 3 . 1 4 10 . 4 4 7 3 4 3 3 2 . 5 . 5 . 3 . 10 . 3 . 6 6 2 Storage 3 | . . . . . . . . . . . . . . 2 . . . . . . . . . . . . . . . . . . . . . 1 . . . . . . Processor 12 | . . . . . 1 1 . . . 1 . . . . 1 . 1 1 . . . . . . 2 . . . . . . . . 1 . . . 2 . . . 1 Hackware 1 | . . . . . . . . . . . . . . . . . . . . . 1 . . . . . . . . . . . . . . . . . . . . . Protection 2 | . . . . . . 1 . . . . . . . . . . . . . . . . . . . . . . . . . . . . . 1 . . . . . . Artifact . | . . . . . . . . . . . . . . . . . . . . . . . . . . . . . . . . . . . . . . . . . . . Weapon 72 | 2 3 1 1 2 9 . 3 3 5 . 1 . 2 2 2 . . . 6 . 2 6 1 . 4 2 1 . . . . 2 . 2 1 2 2 . . 2 3 . Energy Gun 6 | 1 . . . . 1 . . . 1 . . . . 1 . . . . . . 1 . . . 1 . . . . . . . . . . . . . . . . . Energy Cannon 11 | . 2 . 1 1 4 . 1 . 1 . . . . . . . . . . . . . . . 1 . . . . . . . . . . . . . . . . . Ballistic Gun 2 | 1 1 . . . . . . . . . . . . . . . . . . . . . . . . . . . . . . . . . . . . . . . . . Ballistic Cannon 30 | . . . . . . . . . 1 . 1 . 2 1 1 . . . 5 . 1 3 1 . 2 1 1 . . . . 1 . 1 1 2 1 . . 1 3 . Launcher 16 | . . . . 1 2 . 2 . 1 . . . . . 1 . . . 1 . . 3 . . . 1 . . . . . 1 . 1 . . 1 . . 1 . . Special Weapon . | . . . . . . . . . . . . . . . . . . . . . . . . . . . . . . . . . . . . . . . . . . . Impact Weapon 6 | . . 1 . . 1 . . 3 1 . . . . . . . . . . . . . . . . . . . . . . . . . . . . . . . . . Slashing Weapon 1 | . . . . . 1 . . . . . . . . . . . . . . . . . . . . . . . . . . . . . . . . . . . . . Piercing Weapon . | . . . . . . . . . . . . . . . . . . . . . . . . . . . . . . . . . . . . . . . . . . . Special Melee Weapon . | . . . . . . . . . . . . . . . . . . . . . . . . . . . . . . . . . . . . . . . . . . . Unidentified Prototypes 33 | . . 1 . . . 2 . . . . 1 . . 5 . . 1 . . . 1 4 . . 5 . . . . . . 1 . 2 . 9 . 1 . . . . Corrupted Parts 4 | . . . . . . . . . . . . 1 . . . . . . . . . . 1 . . 2 . . . . . . . . . . . . . . . . System Corruption 21 | . . . . . . . . . . . . 6 . . . . . . . . . . 10 . . 5 . . . . . . . . . . . . . . . . Parts Lost 5 | . . . . . 2 2 1 . . . . . . . . . . . . . . . . . . . . . . . . . . . . . . . . . . . Power . | . . . . . . . . . . . . . . . . . . . . . . . . . . . . . . . . . . . . . . . . . . . Propulsion 2 | . . . . . 2 . . . . . . . . . . . . . . . . . . . . . . . . . . . . . . . . . . . . . Utility 3 | . . . . . . 2 1 . . . . . . . . . . . . . . . . . . . . . . . . . . . . . . . . . . . Weapon . | . . . . . . . . . . . . . . . . . . . . . . . . . . . . . . . . . . . . . . . . . . . Highest Loss Streak 1 | . . . . . 1 1 1 . . . . . . . . . . . . . . . . . . . . . . . . . . . . . . . . . . . To Critical Strikes . | . . . . . . . . . . . . . . . . . . . . . . . . . . . . . . . . . . . . . . . . . . . Average Slot Usage (%) 95 | . 100 100 99 88 94 97 97 99 97 91 86 85 83 84 85 85 84 85 88 100 99 99 100 100 100 99 100 100 100 100 100 99 100 100 99 99 100 99 95 98 96 84 Engine 4 | . 14 14 12 10 9 9 9 8 11 14 14 9 7 2 . . . . . . . . . . . . . . . . . . . . . . . . . . . . Core 2 | . . . . . . . . . . . . 4 7 7 7 7 7 7 7 7 6 6 6 6 4 . . . . . . . . . . . . . . . . . Reactor 6 | . . . . . . . . . . . . . . 4 7 7 7 7 7 7 6 6 6 6 7 11 12 16 16 15 15 15 15 15 15 14 15 15 14 13 13 13 Leg 20 | . 10 . . . 16 27 27 25 23 22 21 21 21 20 21 21 21 21 21 21 20 20 20 19 18 22 22 22 22 21 21 22 25 25 25 25 25 25 23 22 21 18 Hover 1 | . 17 28 25 22 7 . . . . . . . . . . . . . . . . . . . . . . . . . . . . . . . . . . . . . Device 25 | . 28 28 36 33 35 33 18 25 23 28 28 28 28 28 24 21 20 14 14 14 19 21 26 27 28 23 22 22 22 25 26 25 25 24 25 26 30 28 23 26 24 25 Storage 1 | . . . . . . . . . . . . . . 3 7 7 7 7 7 7 6 4 . . . . . . . . . . . . . . . . . . . . Processor 10 | . . . . . 5 9 18 16 15 8 7 7 7 3 3 7 7 13 14 14 13 13 13 12 14 17 16 16 16 15 15 15 15 15 15 12 10 10 14 13 13 13 Energy Cannon 2 | . 3 22 12 10 8 9 9 8 5 . . . . . . . . . . . . . . . . . . . . . . . . . . . . . . . . . Ballistic Cannon 14 | . . . . . . . . . 1 7 12 14 12 14 13 14 14 14 17 28 25 22 26 25 25 22 22 22 22 21 21 20 20 20 19 20 19 20 19 18 17 13 Launcher 1 | . . . . . . . 6 8 7 7 1 . . . . . . . . . . 2 . . . . . . . . . . . . . . . . . 3 3 . Impact Weapon 1 | . . 5 12 10 9 9 1 7 6 . . . . . . . . . . . . . . . . . . . . . . . . . . . . . . . . . Naked Turns . | . . . . . . . . . . . . . . . . . . . . . . . . . . . . . . . . . . . . . . . . . . . Heaviest Build 138 | 11 13 14 18 22 26 26 30 31 56 59 80 85 85 85 85 83 83 86 86 80 83 83 87 88 91 91 103 103 103 104 104 127 127 127 124 130 130 130 123 138 138 116 Greatest Support 136 | 20 20 14 19 24 40 55 55 55 91 91 91 91 91 91 91 91 91 91 91 91 91 91 91 91 96 114 104 104 104 104 104 136 136 136 136 136 136 136 136 136 136 118 Greatest Overweight (x) 1 | . 1 . . 1 1 . . . . . . . . 1 . . 1 . . . . . . . . . . . . . . . . . . . . . . 1 1 . Average Overweight (x) . | . . . . . . . . . . . . . . . . . . . . . . . . . . . . . . . . . . . . . . . . . . . Largest Inventory Capacity 6 | 2 2 2 3 3 3 3 3 3 4 4 4 4 4 4 5 5 5 5 5 5 5 5 5 5 5 5 5 5 5 5 5 5 5 5 5 5 5 6 6 6 6 6 Average Capacity 4 | 2 2 2 2 3 3 3 3 3 3 4 4 4 4 4 4 5 5 5 5 5 5 5 5 5 5 5 5 5 5 5 5 5 5 5 5 5 5 5 6 6 6 6 Most Carried 6 | 2 2 2 3 3 3 3 3 3 4 4 4 4 4 4 5 5 5 5 5 5 5 5 5 5 5 5 5 5 5 5 5 5 5 5 5 5 5 6 6 6 6 5 Average Carried 4 | 1 2 2 2 2 2 2 3 2 3 3 3 3 4 4 4 5 5 5 4 5 4 4 5 5 4 4 4 4 4 4 5 5 5 4 5 4 5 5 6 4 5 5 Final Capacity 6 | 2 2 2 3 3 3 3 3 3 4 4 4 4 4 4 5 5 5 5 5 5 5 5 5 5 5 5 5 5 5 5 5 5 5 5 5 5 5 6 6 6 6 6 Final Carried 6 | 2 2 2 3 3 3 3 3 3 4 4 4 4 4 4 5 5 5 5 5 5 4 5 5 5 5 5 4 5 5 5 5 5 5 5 5 5 5 6 6 5 5 5 Class Distribution -------------------- 36% | Hacker-Gunner 20% | Scavenger-Gunner 15% | Hacker-Mutant 8% | Scavenger-Mutant 6% | Scout 4% | Scavenger-Assassin 3% | Hacker-Skirmisher Dominant Class ---------------- Scout | -10/Materials Scout | -10/Mines Scout | -9/Materials Scout | -8/Materials Scavenger-Assassin | -8/Garrison Hacker-Assassin | -8/Materials Hacker-Mutant | -8/Garrison Hacker-Mutant | -7/Factory Hacker-Mutant | -7/Garrison Hacker-Mutant | -7/Factory Hacker-Gunner | -7/Lower Caves Hacker-Gunner | -7/Lower Caves Hacker-Gunner | -7/Zion Hacker-Gunner | -7/Deep Caves Hacker-Gunner | -6/Proximity Caves Hacker-Gunner | -6/Factory Hacker-Gunner | -6/Waste Hacker-Gunner | -6/Factory Hacker-Gunner | -6/Garrison Hacker-Gunner | -6/Factory Hacker-Gunner | -6/DSF Hacker-Gunner | -5/Factory Hacker-Gunner | -5/Upper Caves Hacker-Gunner | -5/Upper Caves Hacker-Skirmisher | -5/Warlord Scavenger-Gunner | -4/Proximity Caves Scavenger-Gunner | -4/Factory Scavenger-Gunner | -4/Extension Scavenger-Gunner | -4/Cetus Scavenger-Gunner | -4/Archives Scavenger-Gunner | -4/Hub_04(d) Scavenger-Mutant | -4/Garrison Scavenger-Mutant | -3/Research Scavenger-Gunner | -3/Garrison Scavenger-Gunner | -3/Research Scavenger-Gunner | -3/Quarantine Scavenger-Mutant | -3/Garrison Scavenger-Mutant | -2/Research Scavenger-Mutant | -1/Access Scavenger-Gunner | -1/Garrison Scavenger-Gunner | -1/Access Scavenger-Mutant | -1/Command Resources | -11 -10 -10 -9 -8 -8 -8 -8 -7 -7 -7 -7 -7 -7 -7 -6 -6 -6 -6 -6 -6 -6 -5 -5 -5 -5 -4 -4 -4 -4 -4 -4 -4 -3 -3 -3 -3 -3 -2 -1 -1 -1 -1 ----------- Run | Jun Mat Min Mat Mat Gar Mat Gar Fac Gar Fac Low Low Zio Dee Pro Fac Was Fac Gar Fac DSF Fac Upp Upp War Pro Fac Ext Cet Arc Hub Gar Res Gar Res Qua Gar Res Acc Gar Acc Com Matter Collected 24665 | 285 456 80 20 60 240 72 172 43 426 146 208 977 45 710 457 276 784 230 1419 . 454 1145 1004 580 1400 693 394 1267 178 588 120 1128 80 1240 311 1851 1097 230 . 2323 1342 134 Remotely 15148 | . . . . . . . . . . . 34 977 45 700 256 276 784 169 473 . 264 876 1004 580 1044 328 . 210 . 315 . . . 339 . 1575 1097 114 . 2215 1339 134 Salvage Created 24914 | 114 658 197 357 420 1218 760 769 72 1315 137 25 566 . 323 95 133 1040 90 795 . 184 934 736 535 1158 506 463 1583 116 277 164 945 66 1306 352 658 1215 272 . 2620 1609 131 Parts 1344 | 8 43 19 28 28 64 32 33 3 63 5 8 27 . 29 11 6 1 7 51 . 12 75 37 15 53 41 19 69 16 21 8 73 5 61 18 64 52 6 . 132 96 5 Haulers Intercepted 9 | . 1 . 1 . . 2 . . . . . . . . . . . . . . . 2 . . . . . 1 . . 1 1 . . . . . . . . . . Recyclers Shooed 5 | . 1 1 . . . . . . . . . . . . . . . . . . . 2 . . . . . 1 . . . . . . . . . . . . . . Parts Field Recycled . | . . . . . . . . . . . . . . . . . . . . . . . . . . . . . . . . . . . . . . . . . . . Retrieved Matter . | . . . . . . . . . . . . . . . . . . . . . . . . . . . . . . . . . . . . . . . . . . . Parts Self-Destructed 149 | . . . . . . . . . . . 14 31 . . 9 . . . . . . . 41 15 . 39 . . . . . . . . . . . . . . . . Prevented 1 | . . . . . . . . . . . 1 . . . . . . . . . . . . . . . . . . . . . . . . . . . . . . . Kills | -11 -10 -10 -9 -8 -8 -8 -8 -7 -7 -7 -7 -7 -7 -7 -6 -6 -6 -6 -6 -6 -6 -5 -5 -5 -5 -4 -4 -4 -4 -4 -4 -4 -3 -3 -3 -3 -3 -2 -1 -1 -1 -1 ------- Run | Jun Mat Min Mat Mat Gar Mat Gar Fac Gar Fac Low Low Zio Dee Pro Fac Was Fac Gar Fac DSF Fac Upp Upp War Pro Fac Ext Cet Arc Hub Gar Res Gar Res Qua Gar Res Acc Gar Acc Com Combat Hostiles Destroyed 613 | . 12 7 9 16 37 17 21 1 29 3 4 24 . 15 14 4 6 4 39 . 7 24 19 11 29 21 6 24 5 2 . 30 3 25 6 14 32 3 . 56 32 2 Melee 32 | . . 1 1 6 13 8 . . 3 . . . . . . . . . . . . . . . . . . . . . . . . . . . . . . . . . Guns 14 | . 12 . . . 2 . . . . . . . . . . . . . . . . . . . . . . . . . . . . . . . . . . . . . Cannons 465 | . . 5 6 2 6 2 12 1 17 3 4 22 . 15 8 4 6 4 36 . 7 15 19 11 29 12 4 24 5 2 . 28 3 25 6 14 23 2 . 52 29 2 AOE 77 | . . . 1 5 5 . 9 . 9 . . 1 . . 6 . . . 3 . . 9 . . . 9 2 . . . . 2 . . . . 9 . . 4 3 . Classes Destroyed 29 | 2 7 . 1 1 . . 2 . 1 . 1 . . 2 1 . 1 1 1 . . . 1 . 3 . . 2 . . . . . 1 . 1 . . . . . . Worker 11 | . 2 2 3 1 . . . . . . . . . . . . . . . . . 2 . . . . . . . . 1 . . . . . . . . . . . Builder 4 | . . . . 1 . . . . . . . . . . . . . . . . . 1 . . . . . 1 . . . . . . . . . 1 . . . . Tunneler 10 | 2 . 1 . . . . . 1 . 3 . . . . . . . . . . . . . . . . . . . . . . . . 1 . . . . . 2 . Hauler 9 | . 1 . 1 . . 2 . . . . . . . . . . . . . . . 2 . . . . . 1 . . 1 1 . . . . . . . . . . Recycler 6 | 1 . . . . . 2 . . . . . . . . . . . . . . . 1 . . . . . . . . . . . . . . . . . . 2 . Carrier 1 | . . . . . . . . . . . . . . . . . . . . . . . . . . . . 1 . . . . . . . . . . . . . . Minesweeper 1 | . . . . . . . . . . . . . . . . . . . . . . . 1 . . . . . . . . . . . . . . . . . . . Mechanic 2 | . 1 . . . . . . . . . . . . . . . . . . . . . . . 1 . . . . . . . . . . . . . . . . . Operator 14 | . 2 . 1 1 . . . . . . . . . . . 1 . . . . . . . . . . . 1 . 6 1 . . . . . . 1 . . . . Watcher 19 | . 2 . 2 1 . 3 . . . . . . . . . . . . . . . 2 . . . . 2 3 1 . . . . . 2 . . . . . 1 . Swarmer 165 | . 6 3 3 7 11 5 7 . 6 . . 9 . . 6 . . . 21 . . 4 3 . 2 10 . . . . . 17 3 1 . . 15 . . 20 6 . Cutter 4 | . . . . . . . . . . . . . . . . . . . . . . . . . . . . . . . . . . 3 . . . . . 1 . . Saboteur 4 | . . . . . . . . . . . . . . . . . . . . . . . . . . . . 2 . . . . . . . . . . . . 2 . Grunt 195 | . 6 4 3 7 13 9 6 1 14 2 2 12 . . 6 4 . 1 9 . 5 6 12 7 8 6 2 7 . . . 5 . 8 2 . 5 2 . 12 9 . Brawler 13 | . . . . . . . 2 . . . . . . . . . . . . . . . . 1 5 . . . . . . . . 2 . . 1 . . . 2 . Duelist 6 | . . . . . . . . . . . 1 . . . 1 . . . . . . . 1 . 1 . . 1 . . . . . . . . . . . . 1 . Protector 4 | . . . . . . . . . . . . . . . . . . . . . . . . . 4 . . . . . . . . . . . . . . . . . Sentry 80 | . . . 3 2 13 3 4 . 5 1 1 2 . . . . . 1 5 . 1 4 1 1 . 1 3 7 . 2 . 2 . 4 . . 2 . . 7 5 . Demolisher 3 | . . . . . . . . . . . . . . . . . . . . . . . . . 1 . . 2 . . . . . . . . . . . . . . Specialist 5 | . . . . . . . . . . . . . . . . . . . 1 . . 1 . . . . . . . . . 1 . . . . . . . 2 . . Hunter 33 | . . . . . . . 2 . 1 . . . . . . . . . 2 . . 5 . 2 3 . . . . . . . . 4 . . 6 . . 6 2 . Programmer 43 | . . . . . . . . . 3 . 1 1 . . . . . . . . . 4 2 . 3 4 . 1 . . . 5 . 1 1 1 2 . . 7 5 2 Heavy 4 | . . . . . . . . . . . . . . . . . . 1 . . 1 . . . . . . . . . . . . . 2 . . . . . . . Behemoth 11 | . . . . . . . . . . . . . . . 1 . . 1 1 . . . . . 1 . 1 2 . . . . . 1 1 . 1 . . 1 . . Compactor 6 | . . . . . . . . . . . . . . . . . 6 . . . . . . . . . . . . . . . . . . . . . . . . . Cetus Guard 5 | . . . . . . . . . . . . . . . . . . . . . . . . . . . . . 5 . . . . . . . . . . . . . Quarantine Guard 12 | . . . . . . . . . . . . . . . . . . . . . . . . . . . . . . . . . . . . 12 . . . . . . Executioner 4 | . . . . . . . . . . . . . . . . . . . . . . . . . 2 . . . . . . . . 1 . . . 1 . . . . Alpha 7 1 | . . . . . . . . . . . . . . . . . . . . . . . . . . . . . . . . . . . . 1 . . . . . . Z-Light 8 | . . . . . . . . . . . . . . 8 . . . . . . . . . . . . . . . . . . . . . . . . . . . . Assembled 6 | . . . . . . . . . . . . . . 6 . . . . . . . . . . . . . . . . . . . . . . . . . . . . Thug 3 | . . . . . . . . . . . . . . . . . . . . . . . . . 1 . . 2 . . . . . . . . . . . . . . Savage 1 | . . . . . . . 1 . . . . . . . . . . . . . . . . . . . . . . . . . . . . . . . . . . . Best Kill Streak 15 | 3 3 4 5 9 4 5 4 1 5 2 3 8 . 5 6 2 2 2 8 . 3 10 6 4 7 5 2 6 3 6 3 9 3 12 2 2 15 2 . 11 12 2 Combat Bots Only 15 | . 3 3 5 8 4 5 4 1 5 2 3 8 . 5 6 2 2 2 8 . 3 8 6 4 7 5 2 6 3 2 . 9 3 12 2 2 15 2 . 11 9 2 Max Kills in Single Turn 5 | 1 2 1 1 4 3 1 3 1 2 1 1 2 . 1 3 1 1 1 3 . 1 5 2 1 4 4 2 2 1 1 3 2 2 1 1 1 3 1 . 4 3 1 Gunslinging . | . . . . . . . . . . . . . . . . . . . . . . . . . . . . . . . . . . . . . . . . . . . Exploded 4 | . . . 1 4 3 . 3 . 2 . . 1 . . 3 . . . 3 . . 4 . . . 4 2 . . . . 2 . . . . 3 . . 4 3 . Melee 1 | . . 1 1 1 1 1 . . 1 . . . . . . . . . . . . . . . . . . . . . . . . . . . . . . . . . Uniques/NPCs Destroyed 1 | . . . . . . . . . . . . . . 1 . . . . . . . . . . . . . . . . . . . . . . . . . . . . Z-Imprinter (-7/Deep Caves) Combat | -11 -10 -10 -9 -8 -8 -8 -8 -7 -7 -7 -7 -7 -7 -7 -6 -6 -6 -6 -6 -6 -6 -5 -5 -5 -5 -4 -4 -4 -4 -4 -4 -4 -3 -3 -3 -3 -3 -2 -1 -1 -1 -1 -------- Run | Jun Mat Min Mat Mat Gar Mat Gar Fac Gar Fac Low Low Zio Dee Pro Fac Was Fac Gar Fac DSF Fac Upp Upp War Pro Fac Ext Cet Arc Hub Gar Res Gar Res Qua Gar Res Acc Gar Acc Com Damage Taken 17865 | . 232 151 363 553 1997 990 614 14 1097 128 187 665 . 711 216 150 . 233 619 . 104 683 178 122 488 236 79 484 41 6 65 365 47 245 324 585 543 63 . 2077 2128 82 Core 14073 | . 180 123 296 447 1617 790 478 11 872 104 148 525 . 574 176 115 . 184 471 . 79 538 136 96 383 179 61 385 34 4 54 279 37 188 254 460 426 49 . 1616 1637 67 Absorbed by Shields 8393 | . . . . . . . 10 . . . . . . . . . . 19 672 . 110 441 191 125 487 252 85 442 43 6 66 396 50 259 329 339 576 64 . 1410 1937 84 Redirected to Core 12211 | . 159 85 225 360 1254 645 367 11 784 88 126 456 . 491 132 115 . 184 416 . 79 470 127 88 355 172 57 324 24 4 37 250 37 172 230 443 373 49 . 1483 1494 45 Regen/Repaired (Parts) 51 | . . . . . . . . . . . . . . . . . 49 2 . . . . . . . . . . . . . . . . . . . . . . . . Core Remaining (%) 91 | 100 . 100 100 . . . 67 . . . . . . . 65 . . . . . 100 . . . . 98 . . . . . 98 . . . . 83 100 . . . . Volleys Fired 1286 | 5 81 18 73 35 82 23 55 7 97 8 8 37 1 25 20 10 31 8 57 . 12 54 26 17 40 21 12 42 9 15 7 55 3 52 28 29 46 7 . 75 51 4 Largest 4 | 2 2 2 1 1 1 1 2 2 1 1 2 2 1 2 2 2 2 2 4 . 4 4 4 4 4 4 4 4 4 4 4 4 4 4 4 4 4 4 . 4 4 3 Hottest 272 | 70 120 120 75 75 98 98 179 134 98 83 166 166 83 166 166 166 166 166 264 . 264 241 272 272 272 272 272 272 272 272 272 272 272 272 272 272 272 272 . 272 272 206 Shots Fired 2877 | 10 161 31 73 35 82 23 57 8 97 8 14 75 1 50 36 20 62 16 110 . 48 122 99 68 160 72 43 155 36 51 19 118 9 146 75 102 127 20 . 274 152 12 Gun 169 | 10 145 . . . 14 . . . . . . . . . . . . . . . . . . . . . . . . . . . . . . . . . . . . . Cannon 2662 | . 16 31 73 34 64 23 49 7 89 8 14 75 1 50 35 20 62 16 109 . 48 112 99 68 160 68 43 155 36 51 19 117 9 145 75 102 123 20 . 273 151 12 Launcher 46 | . . . . 1 4 . 8 1 8 . . . . . 1 . . . 1 . . 10 . . . 4 . . . . . 1 . 1 . . 4 . . 1 1 . Special . | . . . . . . . . . . . . . . . . . . . . . . . . . . . . . . . . . . . . . . . . . . . Kinetic 2421 | 5 129 . . . . . . . 11 8 14 75 1 50 35 20 62 16 109 . 48 112 99 68 160 68 43 155 36 51 19 117 9 145 75 102 123 20 . 273 151 12 Thermal 393 | 5 32 31 73 34 63 23 47 7 78 . . . . . . . . . . . . . . . . . . . . . . . . . . . . . . . . . Explosive 46 | . . . . 1 4 . 8 1 8 . . . . . 1 . . . 1 . . 10 . . . 4 . . . . . 1 . 1 . . 4 . . 1 1 . Electromagnetic 17 | . . . . . 15 . 2 . . . . . . . . . . . . . . . . . . . . . . . . . . . . . . . . . . . Robot Hit Streak 33 | 2 13 11 14 13 19 6 22 5 13 9 10 10 . 14 15 15 26 6 10 . 11 24 8 16 11 33 26 21 24 10 11 12 4 31 25 22 32 29 . 33 19 12 Robot Miss Streak 4 | 3 3 4 2 2 2 1 1 1 2 . 2 2 . 2 2 1 2 1 3 . 2 1 2 2 4 1 1 2 . 1 . 2 1 3 2 1 1 1 . 2 2 . Penetration Max 2 | . . . . . . . . . . . . . . . . 1 . . 1 . 1 1 1 . 2 . . 1 . . . 1 1 . 1 . . . . 2 1 . Secondary Targets . | . . . . . . . . . . . . . . . . . . . . . . . . . . . . . . . . . . . . . . . . . . . Shots Hit Robots 1626 | 4 62 14 30 37 96 57 37 5 75 8 6 44 . 31 27 10 53 7 58 . 25 63 49 37 80 40 26 83 20 21 8 44 4 65 39 65 68 8 . 139 72 9 Core Hits 831 | 4 31 10 11 16 30 10 26 2 49 5 5 18 . 14 14 5 6 5 34 . 9 45 25 14 47 26 23 45 7 11 3 30 4 35 17 30 38 7 . 71 47 2 Critical Kills 229 | . . . 1 1 5 2 1 . 3 . . . . . . . . . 3 . 4 18 12 7 20 4 5 22 6 5 . 13 2 16 3 10 10 2 . 32 22 . Critical Parts Destroyed 250 | . 1 1 3 6 12 7 . . 1 . . . . . . . . . 1 . 7 26 3 11 27 12 3 21 2 3 1 6 1 16 6 11 14 2 . 30 14 2 Critical Strikes 600 | . 2 1 4 7 20 10 1 . 7 . . 5 . 5 2 . 2 1 11 . 12 46 15 18 58 18 9 50 9 11 1 28 3 38 14 30 31 5 . 72 50 4 Burn 1 | . 1 . . . . . . . . . . . . . . . . . . . . . . . . . . . . . . . . . . . . . . . . . Meltdown 6 | . . . 1 . 1 . 1 . 3 . . . . . . . . . . . . . . . . . . . . . . . . . . . . . . . . . Destroy 475 | . 1 . . . . . . . . . . . . . . . . . 4 . 12 46 15 18 53 16 8 48 9 8 1 19 3 35 12 26 26 4 . 68 41 2 Blast 77 | . . . . . . . . . 3 . . 5 . 5 2 . 2 1 7 . . . . . 5 2 1 2 . 3 . 9 . 3 2 4 5 1 . 4 9 2 Smash 41 | . . 1 3 7 19 10 . . 1 . . . . . . . . . . . . . . . . . . . . . . . . . . . . . . . . . Melee Attacks 205 | . . 4 12 24 98 54 2 . 11 . . . . . . . . . . . . . . . . . . . . . . . . . . . . . . . . . Impact 205 | . . 4 12 24 98 54 2 . 11 . . . . . . . . . . . . . . . . . . . . . . . . . . . . . . . . . Slashing . | . . . . . . . . . . . . . . . . . . . . . . . . . . . . . . . . . . . . . . . . . . . Piercing . | . . . . . . . . . . . . . . . . . . . . . . . . . . . . . . . . . . . . . . . . . . . Sneak Attacks 15 | . . 1 3 1 6 4 . . . . . . . . . . . . . . . . . . . . . . . . . . . . . . . . . . . . Combat Hostiles . | . . . . . . . . . . . . . . . . . . . . . . . . . . . . . . . . . . . . . . . . . . . Follow-up Attacks . | . . . . . . . . . . . . . . . . . . . . . . . . . . . . . . . . . . . . . . . . . . . Damage Inflicted 78593 | 75 898 486 1447 1557 3578 2596 2068 172 3537 688 610 3414 . 2306 2464 910 4779 650 4710 . 566 2422 1639 1152 3457 2295 918 3303 448 904 486 2114 200 2540 1829 2560 4066 510 . 6175 3532 532 Guns 900 | 75 673 . . . 152 . . . . . . . . . . . . . . . . . . . . . . . . . . . . . . . . . . . . . Cannons 61629 | . 121 191 406 425 713 271 1134 172 2492 688 610 3311 . 2306 2087 910 4779 642 4540 . 566 1207 1639 1152 3457 1507 621 3251 448 904 133 1743 200 2540 1829 2514 2561 417 . 5622 2988 532 Explosions 8358 | . 101 53 257 188 143 . 820 . 710 . . 103 . . 377 . . . 170 . . 1199 . . . 788 297 . . . 353 371 . . . . 1505 . . 553 370 . Melee 7301 | . . 242 784 944 2557 2325 114 . 335 . . . . . . . . . . . . . . . . . . . . . . . . . . . . . . . . . Ramming 405 | . 3 . . . 13 . . . . . . . . . . . . 8 . . . 16 . . . . . 52 . . . . . . . 46 . 93 . . 174 . Kinetic 56672 | 25 549 . . . . . . . 394 688 610 3311 . 2306 2087 910 4779 642 4540 . 566 1207 1639 1152 3457 1507 621 3251 448 904 133 1743 200 2540 1829 2514 2561 417 . 5622 2988 532 Thermal 6757 | 50 346 244 663 425 713 271 1117 172 2098 . . 103 . . 225 . . . . . . 330 . . . . . . . . . . . . . . . . . . . . Explosive 6639 | . . . . 188 143 . 820 . 710 . . . . . 152 . . . 170 . . 869 . . . 788 . . . . . 371 . . . . 1505 . . 553 370 . Electromagnetic 819 | . . . . . 152 . 17 . . . . . . . . . . . . . . . . . . . 297 . . . 353 . . . . . . . . . . . Impact 7301 | . . 242 784 944 2557 2325 114 . 335 . . . . . . . . . . . . . . . . . . . . . . . . . . . . . . . . . Slashing . | . . . . . . . . . . . . . . . . . . . . . . . . . . . . . . . . . . . . . . . . . . . Piercing . | . . . . . . . . . . . . . . . . . . . . . . . . . . . . . . . . . . . . . . . . . . . Highest Corruption 10 | . 4 4 . . 1 1 1 . 3 . . 7 3 . . . . . . . . 2 10 1 . 5 . 1 1 1 2 2 . . . 4 1 . . 6 8 8 Average Corruption 2 | . 2 4 . . 1 1 1 . 2 . . 3 3 . . . . . . . . 1 2 1 . 4 . 1 1 1 2 1 . . . 2 1 . . 3 3 7 Corruption Purged 37 | . . . . . . . . . 3 . . 4 . . . . . . . . . . 12 1 . . . . . 1 . 2 . . . 4 . . . 6 2 2 Corruption Blocked 21 | . . . . . . . . . . . 15 . . . . . . . . . . . . . 2 . . . . . . . . . . . . 4 . . . . Effects 120 | . 5 5 . . 8 2 4 . 2 . . 16 . . . . . . . . . 3 12 6 . 18 . 2 1 . . 1 . . . 3 7 . . 15 9 1 Message Errors 31 | . 1 1 . . 2 1 3 . . . . 4 . . . . . . . . . . 4 2 . 4 . . . . . . . . . . 2 . . 4 3 . Matter Fused 28 | . 3 . . . 1 . . . . . . 4 . . . . . . . . . 1 4 1 . 3 . 1 . . . . . . . 1 3 . . 3 2 1 Heat Flow Errors 15 | . 1 1 . . 2 . . . 1 . . 2 . . . . . . . . . . 1 . . 4 . . 1 . . . . . . . . . . 2 . . Energy Discharges 14 | . . . . . 1 . . . . . . 3 . . . . . . . . . 1 . 1 . 3 . . . . . 1 . . . 1 . . . 3 . . Parts Rejected 2 | . . . . . . . . . . . . . . . . . . . . . . . . . . . . . . . . . . . . . . . . . 2 . Parts Fused 1 | . . . . . 1 . . . . . . . . . . . . . . . . . . . . . . . . . . . . . . . . . . . . . Data Loss (minor) 16 | . . 1 . . 1 1 1 . . . . 2 . . . . . . . . . . 2 2 . 3 . . . . . . . . . 1 1 . . 1 . . Data Loss (major) 5 | . . 2 . . . . . . 1 . . . . . . . . . . . . . . . . 1 . . . . . . . . . . . . . . 1 . Misfires 2 | . . . . . . . . . . . . 1 . . . . . . . . . . . . . . . . . . . . . . . . 1 . . . . . Weapon Failures 6 | . . . . . . . . . . . . . . . . . . . . . . 1 1 . . . . 1 . . . . . . . . . . . 2 1 . Overload Shots . | . . . . . . . . . . . . . . . . . . . . . . . . . . . . . . . . . . . . . . . . . . . Overflow Damage 6369 | . 6 154 314 404 800 600 99 28 199 120 40 611 . 302 243 78 50 44 603 . . 77 122 4 87 181 16 103 16 78 39 47 . . 14 12 251 68 . 161 341 57 Projectiles 3472 | . 6 4 . 32 9 16 87 28 93 120 40 598 . 302 243 78 50 44 603 . . . 122 4 87 117 16 103 16 78 . 41 . . 14 12 146 . . 141 165 57 Explosions 507 | . . . 16 30 1 . 2 . 3 . . 13 . . . . . . . . . 77 . . . 64 . . . . 39 6 . . . . 105 . . 20 131 . Melee 2390 | . . 150 298 342 790 584 10 . 103 . . . . . . . . . . . . . . . . . . . . . . . . . . . . 68 . . 45 . Knockbacks 203 | . . 2 1 4 1 10 2 . . 2 1 16 . 10 4 6 . . 13 . 4 8 10 7 11 4 . 18 . 6 2 3 2 5 5 3 8 1 . 19 14 1 Impact 19 | . . 1 1 4 1 9 2 . . . . . . . . . . . . . . . . . . . . . . . . . . . . 1 . . . . . . Kinetic 163 | . . . . . . . . . . 2 1 13 . 8 4 6 . . 10 . 4 8 9 7 11 3 . 14 . 5 2 3 2 4 5 2 8 1 . 17 13 1 Secondary 21 | . . 1 . . . 1 . . . . . 3 . 2 . . . . 3 . . . 1 . . 1 . 4 . 1 . . . 1 . . . . . 2 1 . Self-Inflicted Damage 562 | . 1 . 88 . 27 . 19 . 59 . . . . . . . . . . . . 43 . . . . 31 . . . 102 39 . . . . 153 . . . . . Shots 14 | . . . 2 . 1 . 1 . 2 . . . . . . . . . . . . 1 . . . . 2 . . . 1 1 . . . . 3 . . . . . Rammed 2 | . 1 . . . 1 . . . . . . . . . . . . . . . . . . . . . . . . . . . . . . . . . . . . . Targets Rammed 22 | . 1 . . . 1 . . . . . . . . . . . . 1 . . . 2 . . . . . 4 . . . . . . . 3 . 2 . . 8 . Kicked 20 | . . . . . . . . . . . . . . . . . . 1 . . . 2 . . . . . 4 . . . . . . . 3 . 2 . . 8 . Crushed . | . . . . . . . . . . . . . . . . . . . . . . . . . . . . . . . . . . . . . . . . . . . Highest Temperature 236 | 27 133 82 4 . 140 6 99 . 174 . . 128 . . 6 6 . . 37 . 1 9 99 65 79 198 49 62 236 24 24 48 . 1 4 84 54 . . 144 5 . Average Temperature 24 | 11 19 22 4 . 17 2 33 . 18 . . 43 . . 6 6 . . 23 . 1 6 32 26 24 63 16 19 32 16 16 20 . 1 4 27 42 . . 74 5 . Received Heat Transfer 4051 | . 72 48 108 252 702 432 188 9 318 27 81 261 . 245 102 90 . 18 62 . 22 28 38 53 49 57 21 88 4 . . 49 . 25 60 52 16 6 . 82 378 8 Effects 2 | . . . . . . . . . . . . . . . . . . . . . . . . . . . . . 2 . . . . . . . . . . . . . Interference 2 | . . . . . . . . . . . . . . . . . . . . . . . . . . . . . 2 . . . . . . . . . . . . . Siege Activations . | . . . . . . . . . . . . . . . . . . . . . . . . . . . . . . . . . . . . . . . . . . . Robots Corrupted . | . . . . . . . . . . . . . . . . . . . . . . . . . . . . . . . . . . . . . . . . . . . Combat Hostiles . | . . . . . . . . . . . . . . . . . . . . . . . . . . . . . . . . . . . . . . . . . . . Parts Fried 47 | . . . 6 6 17 12 . . 1 . . 1 . . . . . . . . . . . . . . 1 . . . 1 . . . . . . 2 . . . . Impact Corruptions 93 | . . 3 10 13 30 22 1 . 3 . . 2 . . . . . . 3 . . . . . . . . . . 2 . . . . . . . 1 . . 3 . Robots Melted 6 | . . . 1 . 1 . 1 . 3 . . . . . . . . . . . . . . . . . . . . . . . . . . . . . . . . . Combat Hostiles 2 | . . . . . 1 . . . 1 . . . . . . . . . . . . . . . . . . . . . . . . . . . . . . . . . Parts Melted 28 | . 2 2 3 . 3 . 4 . 13 . . . . . . . . . . . . . . . . . . . . . . . . . . . . . . 1 . . Heat Transferred 9887 | 148 853 507 816 629 1014 400 1700 250 3000 . . 80 . . 240 . . . . . . 250 . . . . . . . . . . . . . . . . . . . . Parts Sabotaged 6 | . . . . . . . . . . . . . . . . . . . . . . . . . . . . . . . . . . . . . . . . . 6 . Parts Stolen . | . . . . . . . . . . . . . . . . . . . . . . . . . . . . . . . . . . . . . . . . . . . Parts Stripped . | . . . . . . . . . . . . . . . . . . . . . . . . . . . . . . . . . . . . . . . . . . . Power Chain Reactions . | . . . . . . . . . . . . . . . . . . . . . . . . . . . . . . . . . . . . . . . . . . . Missiles Intercepted . | . . . . . . . . . . . . . . . . . . . . . . . . . . . . . . . . . . . . . . . . . . . Alert | -11 -10 -10 -9 -8 -8 -8 -8 -7 -7 -7 -7 -7 -7 -7 -6 -6 -6 -6 -6 -6 -6 -5 -5 -5 -5 -4 -4 -4 -4 -4 -4 -4 -3 -3 -3 -3 -3 -2 -1 -1 -1 -1 ------- Run | Jun Mat Min Mat Mat Gar Mat Gar Fac Gar Fac Low Low Zio Dee Pro Fac Was Fac Gar Fac DSF Fac Upp Upp War Pro Fac Ext Cet Arc Hub Gar Res Gar Res Qua Gar Res Acc Gar Acc Com Peak Influence 2945 | 15 533 452 921 1063 2290 1116 1500 911 1890 1147 . . . . . 289 124 1506 2945 1545 1306 1632 . . . . 686 1461 1158 743 708 2115 1265 2332 1679 1371 2076 1254 727 2615 2816 1890 Initial 1801 | . 9 207 176 310 690 1116 647 787 497 991 . . . . . 56 101 . 1054 1545 1081 685 . . . . 170 189 817 463 259 484 1189 948 1311 1100 669 1167 727 596 1568 1801 Average 1142 | 7 233 335 570 701 1584 776 1112 814 1249 1054 . . . . . 200 64 592 2072 1545 1201 994 . . . . 320 721 1031 693 435 1500 1202 1651 1481 1092 1486 1165 727 1629 2044 1824 Maximum Alert Level 5 | . 2 2 3 3 5 4 4 3 5 4 . . . . . 1 . 4 5 4 4 5 . . . . 2 4 4 3 3 5 4 5 5 4 5 4 3 5 5 5 Low Security (%) 6 | 100 44 . 1 . . . . . . . . . . . . 45 100 18 . . . . . . . . 5 4 . . . . . . . . . . . . . . Level 1 7 | . 38 70 29 22 . . . . . . . . . . . 54 . 10 . . . . . . . . 84 18 . . 63 . . . . . . . . . . . Level 2 10 | . 17 29 32 19 . 31 7 . 8 . . . . . . . . 37 . . . 27 . . . . 10 29 . 41 33 16 . . . . 3 . . 12 . . Level 3 24 | . . . 37 58 13 64 32 100 33 58 . . . . . . . 24 2 . 13 39 . . . . . 26 57 58 3 6 . 25 . 42 13 32 100 11 . . Level 4 28 | . . . . . 43 4 60 . 28 41 . . . . . . . 9 20 100 86 19 . . . . . 19 42 . . 18 100 23 85 57 37 67 . 21 16 . Level 5 21 | . . . . . 42 . . . 29 . . . . . . . . . 77 . . 13 . . . . . . . . . 58 . 50 . . 45 . . 54 37 100 High Security 1 | . . . . . . . . . . . . . . . . . . . . . . . . . . . . . . . . . . . 13 . . . . . 45 . Max Security . | . . . . . . . . . . . . . . . . . . . . . . . . . . . . . . . . . . . . . . . . . . . Sterilizations 1 | . . . . . . . . . . . . . . . . . . . . . 1 . . . . . . . . . . . . . . . . . . . . . Squads Dispatched 61 | . 5 1 2 . . 3 . 4 . 1 . 1 . . . 1 . 6 . . 1 8 . . . . 3 3 . . 2 . 1 . 8 . . . . . 11 . Investigation 16 | . 2 1 2 . . 1 . 1 . 1 . 1 . . . . . 1 . . . 2 . . . . . 1 . . 1 . 1 . 1 . . . . . . . Extermination 4 | . . . . . . . . 1 . . . . . . . . . . . . . 2 . . . . . . . . . . . . . . . . . . 1 . Reinforcement 18 | . 3 . . . . 1 . 1 . . . . . . . 1 . 2 . . 1 3 . . . . 1 . . . 1 . . . 4 . . . . . . . Assault 18 | . . . . . . . . 1 . . . . . . . . . 1 . . . 1 . . . . 1 2 . . . . . . 2 . . . . . 10 . Garrison 5 | . . . . . . 1 . . . . . . . . . . . 2 . . . . . . . . 1 . . . . . . . 1 . . . . . . . Intercept . | . . . . . . . . . . . . . . . . . . . . . . . . . . . . . . . . . . . . . . . . . . . Searches Triggered . | . . . . . . . . . . . . . . . . . . . . . . . . . . . . . . . . . . . . . . . . . . . Construction Impeded 2 | . . . . . . . . . . . . . . . . . . 1 . . . 1 . . . . . . . . . . . . . . . . . . . . Haulers Reinforced 4 | . . . . . . . . . . . . . . . . . . . . . . 1 . . . . 1 . . . . . . . 2 . . . . . . . Active Scanning Responses . | . . . . . . . . . . . . . . . . . . . . . . . . . . . . . . . . . . . . . . . . . . . Cargo Convoy Interrupts 1 | . . . . . . . . . . . . . . . . . . . . . . 1 . . . . . . . . . . . . . . . . . . . . Stealth | -11 -10 -10 -9 -8 -8 -8 -8 -7 -7 -7 -7 -7 -7 -7 -6 -6 -6 -6 -6 -6 -6 -5 -5 -5 -5 -4 -4 -4 -4 -4 -4 -4 -3 -3 -3 -3 -3 -2 -1 -1 -1 -1 --------- Run | Jun Mat Min Mat Mat Gar Mat Gar Fac Gar Fac Low Low Zio Dee Pro Fac Was Fac Gar Fac DSF Fac Upp Upp War Pro Fac Ext Cet Arc Hub Gar Res Gar Res Qua Gar Res Acc Gar Acc Com Distress Signals 19 | . 1 . 1 . . 2 . . . . . . . . . . . 1 . . . 2 . . 2 . . 1 1 . . . 1 . 1 . . 5 1 . . . Communications Jammed 30 | . . . . . . . . . . . . . . . . . . . . . . . . . . . . 6 . . 8 . . . 3 . . . . . 13 . Distress Signals 26 | . . . . . . . . . . . . . . . . . . . . . . . . . . . . 6 . . 8 . . . . . . . . . 12 . Times Spotted 863 | . 23 7 12 21 41 26 23 3 38 5 10 31 . 15 13 7 5 13 55 . 9 46 21 9 91 17 8 34 9 4 4 37 3 29 17 11 31 11 . 54 67 3 Peak Tracking Total 21 | . 3 3 3 5 7 5 6 3 4 2 6 9 . 5 4 4 2 7 5 . 3 10 7 4 21 5 2 6 5 1 2 8 3 4 11 2 9 3 . 6 21 1 Tactical Retreats 39 | . 1 1 . 2 2 1 1 . 1 . 1 6 . . 3 1 . . . . . 1 1 . 2 . . 1 . . . 3 . 1 1 . 5 . . 1 3 . Traps | -11 -10 -10 -9 -8 -8 -8 -8 -7 -7 -7 -7 -7 -7 -7 -6 -6 -6 -6 -6 -6 -6 -5 -5 -5 -5 -4 -4 -4 -4 -4 -4 -4 -3 -3 -3 -3 -3 -2 -1 -1 -1 -1 ------- Run | Jun Mat Min Mat Mat Gar Mat Gar Fac Gar Fac Low Low Zio Dee Pro Fac Was Fac Gar Fac DSF Fac Upp Upp War Pro Fac Ext Cet Arc Hub Gar Res Gar Res Qua Gar Res Acc Gar Acc Com Traps Triggered 36 | . 2 . . . 2 1 5 . 3 3 . . . . . 1 . 1 3 . 1 . . . . . 1 1 . . . 2 . 2 1 4 1 . . 2 . . Indirectly . | . . . . . . . . . . . . . . . . . . . . . . . . . . . . . . . . . . . . . . . . . . . Trap Hack Attempts . | . . . . . . . . . . . . . . . . . . . . . . . . . . . . . . . . . . . . . . . . . . . Triggered . | . . . . . . . . . . . . . . . . . . . . . . . . . . . . . . . . . . . . . . . . . . . Disarmed . | . . . . . . . . . . . . . . . . . . . . . . . . . . . . . . . . . . . . . . . . . . . Reprogrammed . | . . . . . . . . . . . . . . . . . . . . . . . . . . . . . . . . . . . . . . . . . . . Reused . | . . . . . . . . . . . . . . . . . . . . . . . . . . . . . . . . . . . . . . . . . . . Traps Extracted . | . . . . . . . . . . . . . . . . . . . . . . . . . . . . . . . . . . . . . . . . . . . Installed . | . . . . . . . . . . . . . . . . . . . . . . . . . . . . . . . . . . . . . . . . . . . Triggered 15 | . . . . . . . . . . . 2 . . . . . . . . . . . . . 13 . . . . . . . . . . . . . . . . . Machines | -11 -10 -10 -9 -8 -8 -8 -8 -7 -7 -7 -7 -7 -7 -7 -6 -6 -6 -6 -6 -6 -6 -5 -5 -5 -5 -4 -4 -4 -4 -4 -4 -4 -3 -3 -3 -3 -3 -2 -1 -1 -1 -1 ---------- Run | Jun Mat Min Mat Mat Gar Mat Gar Fac Gar Fac Low Low Zio Dee Pro Fac Was Fac Gar Fac DSF Fac Upp Upp War Pro Fac Ext Cet Arc Hub Gar Res Gar Res Qua Gar Res Acc Gar Acc Com Machines Disabled 185 | . 12 3 18 13 12 6 7 . 6 . . 7 . 2 3 3 . 11 9 . . 18 1 . . . 6 3 . 4 6 7 . 6 . 7 7 . . 6 2 . Max in Single Turn 6 | . 3 1 2 2 1 1 1 . 1 . . 4 . 1 2 3 . 1 1 . . 6 1 . . . 4 1 . 1 4 2 . 1 . 1 1 . . 2 1 . Garrison Access 2 | . . . . . . . . . . . . . . . . . . . . . . . . . . . 1 . . . . . . . . . . 1 . . . . Garrison Relay 34 | . . . . . 7 . 4 . 4 . . . . . . . . . 4 . . . . . . . . . . . . 4 . 5 . . 4 . . 2 . . Phase Generator 2 | . . . . . 1 . . . . . . . . . . . . . . . . . . . . . . . . . . 1 . . . . . . . . . . Network Hub 1 | . . . . . . . . . . . . . . . . . . . . . . . . . . . . . . . 1 . . . . . . . . . . . Machines Repaired . | . . . . . . . . . . . . . . . . . . . . . . . . . . . . . . . . . . . . . . . . . . . Machines Sabotaged . | . . . . . . . . . . . . . . . . . . . . . . . . . . . . . . . . . . . . . . . . . . . Overloaded Fab Kills . | . . . . . . . . . . . . . . . . . . . . . . . . . . . . . . . . . . . . . . . . . . . Hacking | -11 -10 -10 -9 -8 -8 -8 -8 -7 -7 -7 -7 -7 -7 -7 -6 -6 -6 -6 -6 -6 -6 -5 -5 -5 -5 -4 -4 -4 -4 -4 -4 -4 -3 -3 -3 -3 -3 -2 -1 -1 -1 -1 --------- Run | Jun Mat Min Mat Mat Gar Mat Gar Fac Gar Fac Low Low Zio Dee Pro Fac Was Fac Gar Fac DSF Fac Upp Upp War Pro Fac Ext Cet Arc Hub Gar Res Gar Res Qua Gar Res Acc Gar Acc Com Machines Accessed 103 | . 4 1 3 2 4 6 3 4 2 7 1 2 1 . . 3 . 2 2 1 . 3 1 1 6 1 2 12 1 . 3 1 2 2 5 8 1 3 1 2 . . Terminals 71 | . 2 . 1 1 4 5 3 2 2 3 . 1 . . . 2 . 1 2 1 . 1 1 . . 1 2 12 1 . 2 1 1 2 5 7 1 2 . 2 . . Fabricators 6 | . . . . . . . . 1 . 3 . . . . . 1 . . . . . 1 . . . . . . . . . . . . . . . . . . . . Repair Stations . | . . . . . . . . . . . . . . . . . . . . . . . . . . . . . . . . . . . . . . . . . . . Recycling Units 4 | . 2 . 2 . . . . . . . . . . . . . . . . . . . . . . . . . . . . . . . . . . . . . . . Scanalyzers . | . . . . . . . . . . . . . . . . . . . . . . . . . . . . . . . . . . . . . . . . . . . Garrison Access 11 | . . . . 1 . 1 . 1 . 1 . . . . . . . 1 . . . 1 . . . . . . . . 1 . 1 . . 1 . 1 1 . . . Total Hacks 234 | . 11 1 3 2 7 21 5 14 4 17 1 7 2 . . 5 . 3 3 1 . 9 4 1 6 1 6 25 2 . 5 1 6 4 17 25 1 9 2 3 . . Successful 115 | . 4 1 2 1 3 14 1 6 2 7 1 7 2 . . 3 . 1 2 1 . 1 4 1 6 1 2 14 1 . 3 1 1 2 6 8 1 3 1 1 . . Failed 119 | . 7 . 1 1 4 7 4 8 2 10 . . . . . 2 . 2 1 . . 8 . . . . 4 11 1 . 2 . 5 2 11 17 . 6 1 2 . . Catastrophic 23 | . . . . . 1 . . . . 3 . . . . . 1 . 1 . . . 3 . . . . 1 1 . . . . 3 1 1 5 . 2 . . . . Database Lockouts . | . . . . . . . . . . . . . . . . . . . . . . . . . . . . . . . . . . . . . . . . . . . Manual 55 | . 4 . 2 1 . 4 . 4 . 4 . . 4 . . . . . . . . 4 . . . . 1 4 . . 1 . 2 1 3 15 . 1 . . . . Terminals 182 | . 7 . 1 1 7 20 5 9 4 8 . 6 . . . 4 . 2 3 1 . 4 4 . . 1 6 25 2 . 4 1 2 4 17 23 1 7 . 3 . . Fabricators 13 | . . . . . . . . 4 . 7 . . . . . 1 . . . . . 1 . . . . . . . . . . . . . . . . . . . . Repair Stations . | . . . . . . . . . . . . . . . . . . . . . . . . . . . . . . . . . . . . . . . . . . . Recycling Units 6 | . 4 . 2 . . . . . . . . . . . . . . . . . . . . . . . . . . . . . . . . . . . . . . . Scanalyzers . | . . . . . . . . . . . . . . . . . . . . . . . . . . . . . . . . . . . . . . . . . . . Garrison Access 21 | . . . . 1 . 1 . 1 . 2 . . . . . . . 1 . . . 4 . . . . . . . . 1 . 4 . . 2 . 2 2 . . . Terminal Hacks 90 | . 3 1 . . 3 12 1 3 2 2 1 7 2 . . 2 . . 2 1 . . 4 1 6 1 2 14 1 . 1 1 . 2 5 6 1 2 . 1 . . Record 18 | . . . . . . . . . . 1 . 6 . . . . . . . . . . 4 . 5 1 . . . . . . . . . 1 . . . . . . Part Schematic 3 | . . . . . . . . 1 . . . . 2 . . . . . . . . . . . . . . . . . . . . . . . . . . . . . Robot Analysis 1 | . . . . . . . . . . . . . . . . . . . . . . . . . . . . 1 . . . . . . . . . . . . . . Open Door 19 | . . 1 . . . . 1 . 1 . 1 1 . . . . . . 1 . . . . 1 1 . . 7 1 . . . . 1 1 1 . . . . . . Open DSF 1 | . . . . . . . . . . . . . . . . . . . . 1 . . . . . . . . . . . . . . . . . . . . . . Branch Access Points 4 | . 1 . . . . . . . . 1 . . . . . . . . . . . . . . . . . . . . . . . . 1 1 . . . . . . Emergency Access Points 4 | . . . . . . . . . 1 . . . . . . . . . 1 . . . . . . . . . . . . 1 . . . . 1 . . . . . Terminal Index 3 | . 1 . . . . . . . . . . . . . . . . . . . . . . . . . . 1 . . . . . . 1 . . . . . . . Garrison Index 4 | . . . . . . 1 . 1 . . . . . . . . . . . . . . . . . . . . . . 1 . . . . . . 1 . . . . Alert Level 6 | . . . . . . 4 . . . . . . . . . . . . . . . . . . . . . 1 . . . . . . . . . 1 . . . . Unreport Threat 10 | . . . . . . 4 . . . . . . . . . . . . . . . . . . . . 2 1 . . . . . . . 3 . . . . . . Locate Traps 2 | . . . . . . . . . . . . . . . . . . . . . . . . . . . . 2 . . . . . . . . . . . . . . Maintenance Status 2 | . . . . . . 1 . . . . . . . . . . . . . . . . . . . . . . . . . . . . 1 . . . . . . . Security Status 1 | . . . . . . . . . . . . . . . . 1 . . . . . . . . . . . . . . . . . . . . . . . . . . Patrol Status 1 | . . . . . . . . . . . . . . . . 1 . . . . . . . . . . . . . . . . . . . . . . . . . . Registered Components 3 | . 1 . . . . 1 . . . . . . . . . . . . . . . . . . . . . 1 . . . . . . . . . . . . . . Zone Layout 3 | . . . . . . 1 . 1 . . . . . . . . . . . . . . . . . . . . . . . . . . 1 . . . . . . . Garrison Registry 3 | . . . . . 1 . . . . . . . . . . . . . . . . . . . . . . . . . . . . 1 . . . . . 1 . . Patrol Navigation 1 | . . . . . 1 . . . . . . . . . . . . . . . . . . . . . . . . . . . . . . . . . . . . . Security Stations 1 | . . . . . 1 . . . . . . . . . . . . . . . . . . . . . . . . . . . . . . . . . . . . . Fabricator Hacks 8 | . . . . . . . . 2 . 4 . . . . . 1 . . . . . 1 . . . . . . . . . . . . . . . . . . . . Network Status 4 | . . . . . . . . 1 . 1 . . . . . 1 . . . . . 1 . . . . . . . . . . . . . . . . . . . . Build 4 | . . . . . . . . 1 . 3 . . . . . . . . . . . . . . . . . . . . . . . . . . . . . . . . Repair Station Hacks . | . . . . . . . . . . . . . . . . . . . . . . . . . . . . . . . . . . . . . . . . . . . Recycling Unit Hacks . | . . . . . . . . . . . . . . . . . . . . . . . . . . . . . . . . . . . . . . . . . . . Scanalyzer . | . . . . . . . . . . . . . . . . . . . . . . . . . . . . . . . . . . . . . . . . . . . Garrison Access Hacks 9 | . . . . 1 . 1 . 1 . . . . . . . . . 1 . . . . . . . . . . . . 1 . 1 . . 1 . 1 1 . . . Unlock Access 8 | . . . . 1 . 1 . 1 . . . . . . . . . 1 . . . . . . . . . . . . 1 . 1 . . 1 . . 1 . . . Seal Access 1 | . . . . . . . . . . . . . . . . . . . . . . . . . . . . . . . . . . . . . . 1 . . . . Unauthorized Hacks 8 | . 1 . 2 . . 1 . . . 1 . . . . . . . . . . . . . . . . . . . . 1 . . . 1 1 . . . . . . Terminals 4 | . . . . . . 1 . . . . . . . . . . . . . . . . . . . . . . . . 1 . . . 1 1 . . . . . . Botnet 3 | . . . . . . 1 . . . . . . . . . . . . . . . . . . . . . . . . . . . . 1 1 . . . . . . Sabotage 1 | . . . . . . . . . . . . . . . . . . . . . . . . . . . . . . . 1 . . . . . . . . . . . Fabricators 1 | . . . . . . . . . . 1 . . . . . . . . . . . . . . . . . . . . . . . . . . . . . . . . Haulers 1 | . . . . . . . . . . 1 . . . . . . . . . . . . . . . . . . . . . . . . . . . . . . . . Repair Stations . | . . . . . . . . . . . . . . . . . . . . . . . . . . . . . . . . . . . . . . . . . . . Recycling Units 3 | . 1 . 2 . . . . . . . . . . . . . . . . . . . . . . . . . . . . . . . . . . . . . . . Tunnel 3 | . 1 . 2 . . . . . . . . . . . . . . . . . . . . . . . . . . . . . . . . . . . . . . . Scanalyzers . | . . . . . . . . . . . . . . . . . . . . . . . . . . . . . . . . . . . . . . . . . . . Garrison Access . | . . . . . . . . . . . . . . . . . . . . . . . . . . . . . . . . . . . . . . . . . . . Data Cores Recovered 3 | . . . 1 1 . . . . . . . . . . . . . . . . . . . . . . . 1 . . . . . . . . . . . . . . Used 2 | . . . 1 . . . . . . . . . . . . . . . . . . . . . . . . 1 . . . . . . . . . . . . . . Hacking Detections 63 | . 3 . 1 1 3 3 2 3 1 6 . 1 . . . 2 . 1 1 1 . 2 1 . . . 2 5 1 . 3 . 2 2 5 6 1 3 1 . . . Full Trace Events 12 | . 1 . . . 1 . . 1 . 1 . 1 . . . . . 1 . . . 2 1 . . . . 1 . . . . 1 . 1 . . . . . . . Feedback Events . | . . . . . . . . . . . . . . . . . . . . . . . . . . . . . . . . . . . . . . . . . . . Feedback Blocked . | . . . . . . . . . . . . . . . . . . . . . . . . . . . . . . . . . . . . . . . . . . . Robot Schematics Acquired 7 | . . . . . . . . . . . . . 4 . . . . . . . . . . . . . . . . . . . . . . 3 . . . . . . Robots Built 6 | . . . . . . . . 2 . 4 . . . . . . . . . . . . . . . . . . . . . . . . . . . . . . . . Authchips . | . . . . . . . . . . . . . . . . . . . . . . . . . . . . . . . . . . . . . . . . . . . Time 156 | . . . . . . . . 67 . 89 . . . . . . . . . . . . . . . . . . . . . . . . . . . . . . . . Total Robot Build Rating 15 | . . . . . . . . 8 . 7 . . . . . . . . . . . . . . . . . . . . . . . . . . . . . . . . Part Schematics Acquired 24 | . . . . . . . . 1 . . . . 17 . . . . . . . . . . . . . . . . . . . . . . 6 . . . . . . Parts Built 2 | . . . . . . . . . . 2 . . . . . . . . . . . . . . . . . . . . . . . . . . . . . . . . Authchips . | . . . . . . . . . . . . . . . . . . . . . . . . . . . . . . . . . . . . . . . . . . . Time 31 | . . . . . . . . . . 31 . . . . . . . . . . . . . . . . . . . . . . . . . . . . . . . . Total Part Build Rating 10 | . . . . . . . . . . 10 . . . . . . . . . . . . . . . . . . . . . . . . . . . . . . . . Parts Repaired . | . . . . . . . . . . . . . . . . . . . . . . . . . . . . . . . . . . . . . . . . . . . Time . | . . . . . . . . . . . . . . . . . . . . . . . . . . . . . . . . . . . . . . . . . . . Parts Recycled . | . . . . . . . . . . . . . . . . . . . . . . . . . . . . . . . . . . . . . . . . . . . Recycled Matter . | . . . . . . . . . . . . . . . . . . . . . . . . . . . . . . . . . . . . . . . . . . . Retrieved Matter . | . . . . . . . . . . . . . . . . . . . . . . . . . . . . . . . . . . . . . . . . . . . Retrieved Components . | . . . . . . . . . . . . . . . . . . . . . . . . . . . . . . . . . . . . . . . . . . . Parts Scanalyzed . | . . . . . . . . . . . . . . . . . . . . . . . . . . . . . . . . . . . . . . . . . . . Part Schematics Acquired . | . . . . . . . . . . . . . . . . . . . . . . . . . . . . . . . . . . . . . . . . . . . Parts Damaged . | . . . . . . . . . . . . . . . . . . . . . . . . . . . . . . . . . . . . . . . . . . . Bothacking | -11 -10 -10 -9 -8 -8 -8 -8 -7 -7 -7 -7 -7 -7 -7 -6 -6 -6 -6 -6 -6 -6 -5 -5 -5 -5 -4 -4 -4 -4 -4 -4 -4 -3 -3 -3 -3 -3 -2 -1 -1 -1 -1 ------------ Run | Jun Mat Min Mat Mat Gar Mat Gar Fac Gar Fac Low Low Zio Dee Pro Fac Was Fac Gar Fac DSF Fac Upp Upp War Pro Fac Ext Cet Arc Hub Gar Res Gar Res Qua Gar Res Acc Gar Acc Com Used RIF Installer . | . . . . . . . . . . . . . . . . . . . . . . . . . . . . . . . . . . . . . . . . . . . Robots Hacked . | . . . . . . . . . . . . . . . . . . . . . . . . . . . . . . . . . . . . . . . . . . . Non-combat . | . . . . . . . . . . . . . . . . . . . . . . . . . . . . . . . . . . . . . . . . . . . Combat . | . . . . . . . . . . . . . . . . . . . . . . . . . . . . . . . . . . . . . . . . . . . Robot Hacks Applied . | . . . . . . . . . . . . . . . . . . . . . . . . . . . . . . . . . . . . . . . . . . . Relay Couplers Released 63 | . . . . . 12 . 7 . 6 . . . . . . . . . 7 . . . . . . . . . . . . 9 . 8 . 2 8 . . 4 . . Machine Destruction 57 | . . . . . 11 . 7 . 6 . . . . . . . . . 6 . . . . . . . . . . . . 7 . 8 . . 8 . . 4 . . Programmers 6 | . . . . . 1 . . . . . . . . . . . . . 1 . . . . . . . . . . . . 2 . . . 2 . . . . . . Fabnet Peak Effective % . | . . . . . . . . . . . . . . . . . . . . . . . . . . . . . . . . . . . . . . . . . . . Robots Rewired 33 | . . . . . 4 . 3 . 4 . 2 . . . . . . . 5 . . . . . 5 . . 6 . . . . . 2 . . . . . 2 . . Allies Hacked . | . . . . . . . . . . . . . . . . . . . . . . . . . . . . . . . . . . . . . . . . . . . Hacks Repelled . | . . . . . . . . . . . . . . . . . . . . . . . . . . . . . . . . . . . . . . . . . . . Allies | -11 -10 -10 -9 -8 -8 -8 -8 -7 -7 -7 -7 -7 -7 -7 -6 -6 -6 -6 -6 -6 -6 -5 -5 -5 -5 -4 -4 -4 -4 -4 -4 -4 -3 -3 -3 -3 -3 -2 -1 -1 -1 -1 -------- Run | Jun Mat Min Mat Mat Gar Mat Gar Fac Gar Fac Low Low Zio Dee Pro Fac Was Fac Gar Fac DSF Fac Upp Upp War Pro Fac Ext Cet Arc Hub Gar Res Gar Res Qua Gar Res Acc Gar Acc Com Total Allies 80 | . . 1 . . 4 . 3 2 4 4 2 . . . . . 19 . 7 . . . . . 5 . . 21 . . . . . 4 . . 2 . . 2 . . Largest Group 19 | . . 1 . . 3 . 3 2 4 3 4 4 . . . . 19 19 7 3 3 1 . . 5 . . 16 16 15 13 5 . 4 . . 2 2 1 3 . . Highest-Rated Group 792 | . . 31 . . 48 . 90 80 106 54 82 82 . . . . 684 684 416 278 278 116 . . 269 . . 792 792 742 555 199 . 293 . . 157 157 95 296 . . Highest-Rated Ally 159 | . . 31 . . 16 . 39 40 40 25 30 30 . . . . 50 50 116 116 116 116 . . 68 . . 159 159 143 51 46 . 119 . . 95 95 95 116 . . Total Orders 9 | . . . . . . . . . . . . . . . . . . . 6 . . . . . 3 . . . . . . . . . . . . . . . . . STAY 1 | . . . . . . . . . . . . . . . . . . . . . . . . . 1 . . . . . . . . . . . . . . . . . ROAM 3 | . . . . . . . . . . . . . . . . . . . 3 . . . . . . . . . . . . . . . . . . . . . . . FOLLOW 4 | . . . . . . . . . . . . . . . . . . . 3 . . . . . 1 . . . . . . . . . . . . . . . . . GUARD 1 | . . . . . . . . . . . . . . . . . . . . . . . . . 1 . . . . . . . . . . . . . . . . . Ally Attacks 616 | . . 6 . . 43 . . 8 40 5 12 14 . . . . . 98 52 . 11 . . . 30 . . 93 47 21 41 31 . 27 . . 6 8 . 23 . . Total Damage 17900 | . . 83 . . 508 . . 182 1056 186 199 109 . . . . . 3352 1980 . 572 . . . 1052 . . 2593 1164 521 994 710 . 1153 . . 256 290 . 940 . . Kills 127 | . . . . . 4 . . 3 8 2 3 2 . . . . . 34 16 . 2 . . . 5 . . 14 4 2 5 8 . 9 . . . 4 . 2 . . Allies Corrupted 4 | . . . . . . . . . . . . . . . . . . 2 . . . 1 . . 1 . . . . . . . . . . . . . . . . . Allies Melted 3 | . . . . . . . 1 . . . . 1 . . . . . . . . . . . . 1 . . . . . . . . . . . . . . . . . Intel | -11 -10 -10 -9 -8 -8 -8 -8 -7 -7 -7 -7 -7 -7 -7 -6 -6 -6 -6 -6 -6 -6 -5 -5 -5 -5 -4 -4 -4 -4 -4 -4 -4 -3 -3 -3 -3 -3 -2 -1 -1 -1 -1 ------- Run | Jun Mat Min Mat Mat Gar Mat Gar Fac Gar Fac Low Low Zio Dee Pro Fac Was Fac Gar Fac DSF Fac Upp Upp War Pro Fac Ext Cet Arc Hub Gar Res Gar Res Qua Gar Res Acc Gar Acc Com Robot Analysis Total 1 | . . . . . . . . . . . . . . . . . . . . . . . . . . . . 1 . . . . . . . . . . . . . . Derelict Logs Recovered 13 | . . 1 . . . . . . . . 2 2 2 . 1 . . . . . . . 2 1 . 2 . . . . . . . . . . . . . . . . Drone Launches . | . . . . . . . . . . . . . . . . . . . . . . . . . . . . . . . . . . . . . . . . . . . Drone Recoveries . | . . . . . . . . . . . . . . . . . . . . . . . . . . . . . . . . . . . . . . . . . . . Exploration | -11 -10 -10 -9 -8 -8 -8 -8 -7 -7 -7 -7 -7 -7 -7 -6 -6 -6 -6 -6 -6 -6 -5 -5 -5 -5 -4 -4 -4 -4 -4 -4 -4 -3 -3 -3 -3 -3 -2 -1 -1 -1 -1 ------------- Run | Jun Mat Min Mat Mat Gar Mat Gar Fac Gar Fac Low Low Zio Dee Pro Fac Was Fac Gar Fac DSF Fac Upp Upp War Pro Fac Ext Cet Arc Hub Gar Res Gar Res Qua Gar Res Acc Gar Acc Com Turns Passed 30245 | 132 661 324 443 374 1699 764 996 402 1607 516 1276 1136 1039 745 1196 292 703 463 1434 56 188 1019 1291 939 1430 711 304 955 202 251 222 768 245 764 421 1305 609 758 14 914 622 55 Spaces Moved 21595 | 66 502 415 379 309 995 393 668 296 1071 410 1030 833 914 545 960 181 456 342 881 45 105 706 801 767 908 617 248 701 140 157 182 560 92 551 331 1029 452 693 14 454 366 30 Core 4 | 4 . . . . . . . . . . . . . . . . . . . . . . . . . . . . . . . . . . . . . . . . . . Treads . | . . . . . . . . . . . . . . . . . . . . . . . . . . . . . . . . . . . . . . . . . . . Legs 19892 | 62 158 . . . 743 393 668 296 1071 410 1030 833 914 545 960 181 456 342 881 45 105 706 801 767 908 617 248 701 140 157 182 560 92 551 331 1029 452 693 14 454 366 30 Wheels . | . . . . . . . . . . . . . . . . . . . . . . . . . . . . . . . . . . . . . . . . . . . Hover 1699 | . 344 415 379 309 252 . . . . . . . . . . . . . . . . . . . . . . . . . . . . . . . . . . . . . Flight . | . . . . . . . . . . . . . . . . . . . . . . . . . . . . . . . . . . . . . . . . . . . Fastest Speed 50 | 50 56 56 56 56 56 120 120 120 113 110 113 113 113 113 113 113 113 113 113 113 113 113 113 113 106 97 97 97 97 97 97 97 104 96 96 96 96 96 96 96 96 97 Average Speed 105 | 115 76 56 56 56 105 120 120 120 115 112 113 113 113 113 113 113 113 113 113 113 113 113 113 113 112 97 97 97 97 97 97 100 104 96 96 96 96 96 96 114 101 97 Slowest Speed 190 | 120 120 56 56 116 190 120 120 120 120 113 113 113 113 180 113 113 180 113 113 113 113 113 113 113 113 106 97 97 97 97 97 108 104 104 96 96 96 96 96 174 174 97 Overloaded Moves . | . . . . . . . . . . . . . . . . . . . . . . . . . . . . . . . . . . . . . . . . . . . Propulsion Burnouts . | . . . . . . . . . . . . . . . . . . . . . . . . . . . . . . . . . . . . . . . . . . . Robots Hopped . | . . . . . . . . . . . . . . . . . . . . . . . . . . . . . . . . . . . . . . . . . . . Cave-ins Triggered 1 | . . . . . 1 . . . . . . . . . . . . . . . . . . . . . . . . . . . . . . . . . . . . . Teleports 2 | . . . . . . . . . . . . . . . . . . . . . . . . . . . . . . . . . . . . 1 . . . 1 . . Exploration Rate (%) 55 | 3 63 78 37 39 90 32 88 11 89 15 98 92 89 71 96 8 95 14 74 1 86 19 97 84 90 81 8 85 75 85 23 84 2 64 14 94 77 29 1 70 15 1 Regions Visited 42 Branch Regions 16 Pre-discovered Areas 9 | . 1 . 2 . . . . . . . 2 1 . . . . . . . . . . 2 . . 1 . . . . . . . . . . . . . . . . Known Exits Taken 22 | . 1 1 . 1 . 1 . 1 . 1 . . . . . . . 1 . 1 . 1 1 1 1 1 1 1 1 1 1 . 1 . 1 1 . . 1 . . . Unknown Exits Taken 9 | 1 . . 1 . . . . . . . 1 1 1 1 1 . . . . . . . . . . . . . . . . . . . . . . 1 . . 1 . Scrap Searched 28 | . . 3 . . . . . . . . 9 1 3 . 2 . . . . . . . 3 4 . 3 . . . . . . . . . . . . . . . . Spaces Dug 137 | . . . . 1 8 5 8 . 6 . 2 2 . . 3 . . 4 . . . 11 . . . 35 . 1 . . 5 4 . 8 12 . 6 4 . 4 8 . Terrain Destroyed 1615 | . 40 8 122 35 105 8 45 9 47 . 7 46 . 21 34 28 8 5 41 . 6 156 34 24 14 84 43 37 8 12 148 106 5 58 22 21 68 6 . 112 40 2 Melee 4 | . . . . . 4 . . . . . . . . . . . . . . . . . . . . . . . . . . . . . . . . . . . . . Projectile 634 | . . . 6 3 6 8 3 1 8 . 7 35 . 21 10 9 8 5 36 . 5 1 34 24 14 14 15 37 8 12 8 29 5 42 22 21 39 6 . 102 28 2 AOE 975 | . 40 8 116 32 95 . 42 8 39 . . 11 . . 24 19 . . 5 . . 154 . . . 70 28 . . . 140 77 . 16 . . 29 . . 10 12 . Terrain Rammed . | . . . . . . . . . . . . . . . . . . . . . . . . . . . . . . . . . . . . . . . . . . . Walls Destroyed . | . . . . . . . . . . . . . . . . . . . . . . . . . . . . . . . . . . . . . . . . . . . Machines Disabled . | . . . . . . . . . . . . . . . . . . . . . . . . . . . . . . . . . . . . . . . . . . . Actions | -11 -10 -10 -9 -8 -8 -8 -8 -7 -7 -7 -7 -7 -7 -7 -6 -6 -6 -6 -6 -6 -6 -5 -5 -5 -5 -4 -4 -4 -4 -4 -4 -4 -3 -3 -3 -3 -3 -2 -1 -1 -1 -1 --------- Run | Jun Mat Min Mat Mat Gar Mat Gar Fac Gar Fac Low Low Zio Dee Pro Fac Was Fac Gar Fac DSF Fac Upp Upp War Pro Fac Ext Cet Arc Hub Gar Res Gar Res Qua Gar Res Acc Gar Acc Com Total 26261 | 108 619 467 512 423 1362 556 798 335 1318 449 1121 914 918 599 1018 239 550 394 1164 51 143 827 1119 795 1217 677 282 877 185 223 212 674 235 682 381 1278 534 769 14 668 508 46 Wait 1608 | 29 16 12 26 21 38 47 15 18 11 19 21 17 . 3 5 45 56 1 121 5 7 20 253 1 178 10 9 71 30 36 22 6 141 26 11 147 10 35 . 32 28 9 Move 21553 | 65 501 414 378 309 992 393 667 296 1069 409 1029 832 913 544 959 181 455 341 880 44 104 705 800 766 907 616 247 700 139 156 181 559 91 548 330 1029 451 692 14 452 365 30 Hop . | . . . . . . . . . . . . . . . . . . . . . . . . . . . . . . . . . . . . . . . . . . . Pick Up 56 | 2 2 . 2 2 1 1 . 2 3 2 4 1 . . 2 . . 1 1 1 1 2 . . 3 1 3 2 2 4 . . . 2 . 3 . . . 4 2 . Fast Attach 147 | 7 5 3 1 1 11 4 3 1 8 3 2 1 2 10 2 . 4 2 5 . 4 8 . 1 11 . 1 2 . 1 . 8 . 5 1 16 . 5 . 2 6 1 Attach 17 | . . . . . . . . 1 . 1 1 . . . 2 . . . 1 . 1 . . . . 1 1 . . 1 . . . . . . . . . 4 3 . Detach 10 | . . . . . . 1 . . . . . . . . 2 . . 1 . . . . . . 1 . . . . . . . . . . 1 . 1 . 1 2 . Swap 106 | . . . 1 4 8 4 3 1 6 1 1 5 . 1 2 . . 3 10 . 2 2 8 2 1 6 3 2 . 3 . 7 . 5 . 4 2 2 . 4 1 2 Drop 171 | . 7 3 2 3 10 6 2 3 16 2 4 2 2 11 3 . 4 3 4 1 5 9 . . 14 . 3 3 2 4 . 9 . 8 . 18 . 4 . 2 2 . Fire 1286 | 5 81 18 73 35 82 23 55 7 97 8 8 37 1 25 20 10 31 8 57 . 12 54 26 17 40 21 12 42 9 15 7 55 3 52 28 29 46 7 . 75 51 4 Melee 205 | . . 4 12 24 98 54 2 . 11 . . . . . . . . . . . . . . . . . . . . . . . . . . . . . . . . . Ram 2 | . 1 . . . 1 . . . . . . . . . . . . . . . . . . . . . . . . . . . . . . . . . . . . . Kick 20 | . . . . . . . . . . . . . . . . . . 1 . . . 2 . . . . . 4 . . . . . . . 3 . 2 . . 8 . Crush . | . . . . . . . . . . . . . . . . . . . . . . . . . . . . . . . . . . . . . . . . . . . Escape Stasis 61 | . . . . . 11 . 10 . 5 . . . . . . . . . 5 . . . . . . . . . . . . 10 . 10 . . 5 . . 5 . . Rewire 212 | . . . . . 39 . 14 . 15 . 34 . . . . . . . 26 . . . . . 30 1 . 19 . . . . . 3 . . . . . 31 . . Trap . | . . . . . . . . . . . . . . . . . . . . . . . . . . . . . . . . . . . . . . . . . . . Miscellaneous 807 | . 6 13 17 24 71 23 27 6 77 4 17 19 . 5 21 3 . 33 54 . 7 25 32 8 32 21 3 32 3 3 2 20 . 23 11 28 20 21 . 56 40 . Route ------- -11/Junkyard -10/Materials (discovered 4 exits: *Mat x2 / *Min x2) -10/Mines -9/Materials -8/Materials (discovered 3 exits: *Fac x2 / Gar) -8/Garrison (discovered 3 exits: *Mat x3) -8/Materials (discovered 2 exits: *Fac / Gar) -8/Garrison (discovered 3 exits: *Fac x3) -7/Factory -7/Garrison (discovered 3 exits: *Fac x3) -7/Factory (discovered 3 exits: Sto / *Low x2) -7/Lower Caves -7/Lower Caves (discovered 2 exits: *Fac / *Zio) -7/Zion (discovered 2 exits: [*Dee] / [*Pro]) -7/Deep Caves -6/Proximity Caves -6/Factory -6/Waste -6/Factory -6/Garrison (discovered 4 exits: *Fac x4) -6/Factory -6/DSF -5/Factory (discovered 2 exits: *Fac / *Upp) -5/Upper Caves -5/Upper Caves (discovered 2 exits: *Fac / *War) -5/Warlord -4/Proximity Caves -4/Factory -4/Extension (discovered 2 exits: *Res / *Cet) -4/Cetus (discovered 2 exits: *Res / *Arc) -4/Archives (discovered 3 exits: *Res / *Hub x2) -4/Hub_04(d) (discovered 2 exits: *Res / Gar) -4/Garrison (discovered 3 exits: *Res x3) -3/Research (discovered 2 exits: Res / Gar) -3/Garrison (discovered 3 exits: *Res x3) -3/Research (discovered 3 exits: Arm / *Qua x2) -3/Quarantine (discovered 2 exits: *Res / Gar) -3/Garrison (discovered 3 exits: *Res x3) -2/Research -1/Access -1/Garrison (discovered 3 exits: [*Acc x3]) -1/Access -1/Command History --------- Turn | Location | Event 1 | -11/Junkyard | Upgraded with Propulsion slot (x1) 1 | -11/Junkyard | Upgraded with Utility slot (x1) 1 | -11/Junkyard | Upgraded with Weapon slot (x1) 3 | -11/Junkyard | Discovered new exit (range 16) 133 | -11/Junkyard | Entered Materials 249 | -10/Materials | Discovered new exit (range 16) 301 | -10/Materials | Build established: Skirmisher 371 | -10/Materials | Discovered new exit (range 11) 530 | -10/Materials | Reached level 2 663 | -10/Materials | Identified exit to Mines 676 | -10/Materials | Build established: Scout 688 | -10/Materials | Discovered new exit (range 14) 794 | -10/Materials | Entered Mines 796 | -10/Mines | Reached level 3 849 | -10/Mines | Found a damaged Exp. Sensor Array with a note attached 851 | -10/Mines | Found Prototype Device 851 | -10/Mines | Identified Exp. Sensor Array 954 | -10/Mines | Identified exit to Materials 970 | -10/Mines | Received a Mining Laser from a helpful Derelict 985 | -10/Mines | Met a Derelict shopkeep closing up shop 1118 | -10/Mines | Entered Materials 1120 | -9/Materials | Reached level 4 1120 | -9/Materials | Upgraded with Utility slot (x1) 1166 | -9/Materials | Reached level 5 1346 | -9/Materials | Reached level 6 1362 | -9/Materials | Discovered new exit (range 15) 1561 | -9/Materials | Entered another Materials area 1563 | -8/Materials | Reached level 7 1648 | -8/Materials | Reached level 8 1695 | -8/Materials | Upgraded with Utility slot (x1) 1704 | -8/Materials | Destroyed 8 combat bots 1784 | -8/Materials | Reached level 9 1788 | -8/Materials | Upgraded with Propulsion slot (x1) 1829 | -8/Materials | Discovered new exit (range 17) 1923 | -8/Materials | Discovered new exit (range 13) 1935 | -8/Materials | Identified exit to Garrison 1935 | -8/Materials | Entered Garrison 1937 | -8/Garrison | Reached level 10 1950 | -8/Garrison | Triggered checkpoint 1977 | -8/Garrison | Garrison Relay disabled 1979 | -8/Garrison | Triggered checkpoint 2053 | -8/Garrison | Phase Generator disabled 2121 | -8/Garrison | Learned Materials security intel 2149 | -8/Garrison | Reached level 11 2214 | -8/Garrison | Triggered checkpoint 2241 | -8/Garrison | Garrison Relay disabled 2252 | -8/Garrison | Triggered checkpoint 2272 | -8/Garrison | Triggered checkpoint 2370 | -8/Garrison | Triggered checkpoint 2468 | -8/Garrison | Triggered checkpoint 2472 | -8/Garrison | Reached level 12 2474 | -8/Garrison | Upgraded with Utility slot (x1) 2604 | -8/Garrison | Build established: Scavenger-Assassin 2725 | -8/Garrison | Garrison Relay disabled 2754 | -8/Garrison | Discovered new exit (range 12) 2842 | -8/Garrison | Triggered checkpoint 2883 | -8/Garrison | Garrison Relay disabled 2891 | -8/Garrison | Discovered new exit (range 15) 2950 | -8/Garrison | Discovered new exit (range 61) 2950 | -8/Garrison | Discovered new exit (range 84) 2950 | -8/Garrison | Discovered new exit (range 19) 3307 | -8/Garrison | Attempted to access garrison exit controls, blocked by remote lockdown 3370 | -8/Garrison | Triggered checkpoint 3396 | -8/Garrison | Garrison Relay disabled 3396 | -8/Garrison | Reached level 13 3405 | -8/Garrison | Garrison Relay disabled 3537 | -8/Garrison | Crushed by falling debris 3613 | -8/Garrison | Garrison Relay disabled 3634 | -8/Garrison | Entered Materials 3933 | -8/Materials | Build established: Hacker-Assassin 4207 | -8/Materials | Discovered new exit (range 16) 4343 | -8/Materials | Garrison activated, responded to threat 4360 | -8/Materials | Core integrity fell below 50% 4398 | -8/Materials | Identified exit to Garrison 4398 | -8/Materials | Entered Garrison 4444 | -8/Garrison | Triggered checkpoint 4472 | -8/Garrison | Garrison Relay disabled 4520 | -8/Garrison | Triggered checkpoint 4537 | -8/Garrison | Triggered checkpoint 4566 | -8/Garrison | Reached level 14 4642 | -8/Garrison | Build established: Hacker-Mutant 4676 | -8/Garrison | Triggered checkpoint 4716 | -8/Garrison | Triggered checkpoint 4742 | -8/Garrison | Garrison Relay disabled 4883 | -8/Garrison | Discovered new exit (range 14) 5090 | -8/Garrison | Triggered checkpoint 5157 | -8/Garrison | Garrison Relay disabled 5181 | -8/Garrison | Discovered new exit (range 10) 5242 | -8/Garrison | Triggered checkpoint 5334 | -8/Garrison | Triggered checkpoint 5349 | -8/Garrison | Garrison Relay disabled 5369 | -8/Garrison | Discovered new exit (range 13) 5394 | -8/Garrison | Entered Factory 5396 | -7/Factory | Reached level 15 5398 | -7/Factory | Upgraded with Weapon slot (x1) 5509 | -7/Factory | Fabricated X-62 Marksman (x2) 5787 | -7/Factory | Identified exit to Garrison 5794 | -7/Factory | First assault squad dispatched 5796 | -7/Factory | Entered Garrison 5796 | -7/Garrison | Accompanied by 1 ally 5818 | -7/Garrison | Triggered checkpoint 5843 | -7/Garrison | Garrison Relay disabled 5908 | -7/Garrison | Triggered checkpoint 5992 | -7/Garrison | Discovered new exit (range 16) 6090 | -7/Garrison | Triggered checkpoint 6178 | -7/Garrison | Garrison Relay disabled 6178 | -7/Garrison | Reached level 16 6248 | -7/Garrison | Triggered checkpoint 6430 | -7/Garrison | Triggered checkpoint 6473 | -7/Garrison | Garrison Relay disabled 6529 | -7/Garrison | Upgraded with Power slot (x1) 6582 | -7/Garrison | Triggered checkpoint 6587 | -7/Garrison | Discovered new exit (range 14) 6759 | -7/Garrison | Triggered checkpoint 7171 | -7/Garrison | Discovered new exit (range 11) 7209 | -7/Garrison | Garrison Relay disabled 7210 | -7/Garrison | Triggered checkpoint 7216 | -7/Garrison | Reached level 17 7246 | -7/Garrison | Attempted to access garrison exit controls, blocked by remote lockdown 7308 | -7/Garrison | Triggered checkpoint 7403 | -7/Garrison | Entered Factory 7403 | -7/Factory | Accompanied by 1 ally 7505 | -7/Factory | Fabricated T-07 Excavator (x1) 7585 | -7/Factory | Fabricated Thermic Laser? 7644 | -7/Factory | Discovered new exit (range 6) 7703 | -7/Factory | Identified exit to Storage 7703 | -7/Factory | Identified exit to Lower Caves 7836 | -7/Factory | Fabricated L-31 Rogue? 7919 | -7/Factory | Entered Lower Caves 7919 | -7/Lower Caves | Accompanied by 3 allies 7925 | -7/Lower Caves | Met a Warlord Commander 7926 | -7/Lower Caves | Learned location of Warlord (-5) 7932 | -7/Lower Caves | Found Encrypted Comm Array 8270 | -7/Lower Caves | Found Alien Artifact 8270 | -7/Lower Caves | Identified Core Expander 8270 | -7/Lower Caves | Installed Core Expander, added new Weapon slot 8492 | -7/Lower Caves | Learned location of Zion (-7) 8581 | -7/Lower Caves | Build established: Hacker-Gunner 8585 | -7/Lower Caves | Encountered a Warlord checkpoint 9183 | -7/Lower Caves | Discovered new exit (range 3) 9195 | -7/Lower Caves | Entered another Lower Caves area 9195 | -7/Lower Caves | Accompanied by 4 allies 9299 | -7/Lower Caves | Destroyed 8 combat bots 9306 | -7/Lower Caves | Learned Extension security intel 9306 | -7/Lower Caves | Learned Armory stockpile data 9306 | -7/Lower Caves | Learned Armory emergency access door positions 9306 | -7/Lower Caves | Learned 6 Upper Caves zone layouts 9306 | -7/Lower Caves | Learned 8 Research zone layouts 9377 | -7/Lower Caves | Attracted the attention of an 0b10 base 9409 | -7/Lower Caves | Learned Factory emergency access door positions 9463 | -7/Lower Caves | Discovered new exit (range 12) 9902 | -7/Lower Caves | Destroyed 8 combat bots 10217 | -7/Lower Caves | Discovered new exit (range 13) 10331 | -7/Lower Caves | Entered Zion 10333 | -7/Zion | Reached level 18 10379 | -7/Zion | System corruption cleaned by Quarantine Array 10517 | -7/Zion | Discovered new exit (range 8) 10679 | -7/Zion | Learned Factory interactive machine intel 10845 | -7/Zion | Learned Factory interactive machine intel 11023 | -7/Zion | Received a hallucinogenic algorithm 11182 | -7/Zion | Acquired unknown access codes intercepted by a Zionite 11346 | -7/Zion | Opened final containment barrier to the Deep Caves 11365 | -7/Zion | Discovered new exit (range 3) 11365 | -7/Zion | Saw the warning signs outside the Deep Caves entrance 11370 | -7/Zion | Entered Deep Caves 11583 | -7/Deep Caves | Attacked by Z-Imprinter 11592 | -7/Deep Caves | Destroyed Z-Imprinter 11708 | -7/Deep Caves | Z-Facility disabled 11716 | -7/Deep Caves | Core integrity fell below 50% 12106 | -7/Deep Caves | Discovered new exit (range 7) 12115 | -7/Deep Caves | Entered Proximity Caves 12729 | -6/Proximity Caves | Attracted the attention of an 0b10 base 12920 | -6/Proximity Caves | Spotted B-75 Beast 12935 | -6/Proximity Caves | Reached level 19 12935 | -6/Proximity Caves | Destroyed B-75 Beast 13149 | -6/Proximity Caves | Learned Factory emergency access door positions 13291 | -6/Proximity Caves | Discovered new exit (range 10) 13311 | -6/Proximity Caves | Entered Factory 13313 | -6/Factory | Loaded intel: 52 interactive machine locations 13603 | -6/Factory | Sucked down chute 13603 | -6/Factory | Entered Waste 13634 | -6/Waste | Destroyed C-40 Crusher 13688 | -6/Waste | Spotted C-40 Crusher 13694 | -6/Waste | Destroyed C-40 Crusher 13716 | -6/Waste | Spotted C-40 Crusher 13722 | -6/Waste | Destroyed C-40 Crusher 13732 | -6/Waste | Spotted C-40 Crusher 13741 | -6/Waste | Destroyed C-40 Crusher 13745 | -6/Waste | Spotted C-40 Crusher 13826 | -6/Waste | Spotted C-40 Crusher 13920 | -6/Waste | Destroyed C-40 Crusher 13933 | -6/Waste | Discovered new exit (range 19) 14004 | -6/Waste | Destroyed C-40 Crusher 14140 | -6/Waste | Warlord forces began an assault 14306 | -6/Waste | Entered Factory 14306 | -6/Factory | Accompanied by 19 allies 14308 | -6/Factory | Loaded intel: 52 interactive machine locations 14442 | -6/Factory | Reached level 20 14656 | -6/Factory | First assault squad dispatched 14707 | -6/Factory | Spotted B-75 Beast 14708 | -6/Factory | Destroyed B-75 Beast 14741 | -6/Factory | Identified exit to Garrison 14753 | -6/Factory | Reached level 21 14769 | -6/Factory | Entered Garrison 14769 | -6/Garrison | Accompanied by 5 allies 14830 | -6/Garrison | Triggered checkpoint 14882 | -6/Garrison | Garrison Relay disabled 14962 | -6/Garrison | Triggered checkpoint 15007 | -6/Garrison | Discovered new exit (range 6) 15067 | -6/Garrison | Triggered checkpoint 15092 | -6/Garrison | Triggered checkpoint 15094 | -6/Garrison | Triggered checkpoint 15132 | -6/Garrison | Destroyed 8 combat bots 15175 | -6/Garrison | Discovered new exit (range 9) 15196 | -6/Garrison | Triggered checkpoint 15234 | -6/Garrison | Garrison Relay disabled 15292 | -6/Garrison | Spotted B-86 Titan 15305 | -6/Garrison | Destroyed B-86 Titan 15338 | -6/Garrison | Rewired B-86 Titan 15357 | -6/Garrison | Rewired B-86 Titan 15489 | -6/Garrison | Discovered new exit (range 11) 15530 | -6/Garrison | Triggered checkpoint 15560 | -6/Garrison | Triggered checkpoint 15569 | -6/Garrison | Garrison Relay disabled 15590 | -6/Garrison | Destroyed 7 combat bots 15674 | -6/Garrison | Identified exit to Factory 15727 | -6/Garrison | Triggered checkpoint 15797 | -6/Garrison | Rescued a captive Derelict 15798 | -6/Garrison | Rescued a captive Derelict 15912 | -6/Garrison | Discovered exit to Factory (range 17) 15946 | -6/Garrison | Reached level 22 16203 | -6/Garrison | Entered Factory 16203 | -6/Factory | Accompanied by 3 allies 16255 | -6/Factory | Identified exit to DSF 16259 | -6/Factory | Entered DSF 16259 | -6/DSF | Accompanied by 3 allies 16261 | -6/DSF | Upgraded with Utility slot (x1) 16295 | -6/DSF | Additional patrols routed to DSF 16407 | -6/DSF | Sterilization system engaged 16422 | -6/DSF | Discovered new exit (range 17) 16427 | -6/DSF | Ambient heat levels rising (+10) 16441 | -6/DSF | Identified exit to Factory 16442 | -6/DSF | Ambient heat levels rising (+10) 16447 | -6/DSF | Entered Factory 16447 | -5/Factory | Accompanied by 1 ally 16448 | -5/Factory | Identified exit to Upper Caves 16702 | -5/Factory | Discovered new exit (range 18) 16725 | -5/Factory | Identified exit to Factory 17120 | -5/Factory | Reached level 23 17213 | -5/Factory | Destroyed 8 combat bots 17229 | -5/Factory | Cargo convoy interrupted 17308 | -5/Factory | Destroyed 8 combat bots 17347 | -5/Factory | First assault squad dispatched 17395 | -5/Factory | Found Prototype Device 17395 | -5/Factory | Identified Exp. Actuator Array 17466 | -5/Factory | Entered Upper Caves 17673 | -5/Upper Caves | Encountered a Warlord checkpoint 17893 | -5/Upper Caves | System corruption reached 10% 18216 | -5/Upper Caves | Learned Factory terminal intel 18307 | -5/Upper Caves | Identified exit to Upper Caves 18588 | -5/Upper Caves | Attracted the attention of an 0b10 base 18663 | -5/Upper Caves | Learned location of 2 exits from Upper Caves 18663 | -5/Upper Caves | Learned location of Extension (-4) 18757 | -5/Upper Caves | Entered another Upper Caves area 18759 | -5/Upper Caves | Attracted the attention of an 0b10 checkpoint 18759 | -5/Upper Caves | Identified exit to Warlord 18772 | -5/Upper Caves | Learned Factory stockpile data 18973 | -5/Upper Caves | Reached level 24 19418 | -5/Upper Caves | Upgraded with Utility slot (x1) 19696 | -5/Upper Caves | Entered Warlord 19724 | -5/Warlord | Build established: Hacker-Skirmisher 20177 | -5/Warlord | Received a Watcher feed algorithm from an ecstatic Tinkerer 20250 | -5/Warlord | Warlord's base attacked by MAIN.C 20292 | -5/Warlord | Found Prototype Energy Cannon 20292 | -5/Warlord | Identified Vortex Cannon 20301 | -5/Warlord | Found Prototype Energy Gun 20301 | -5/Warlord | Identified Vortex Rail 20391 | -5/Warlord | Met Warlord 20600 | -5/Warlord | Warlord forces counterattacked 20629 | -5/Warlord | Spotted Executioner 20634 | -5/Warlord | Destroyed Executioner 20655 | -5/Warlord | Destroyed 7 combat bots 20659 | -5/Warlord | Spotted B-75 Beast 20662 | -5/Warlord | Spotted B-86 Titan 20662 | -5/Warlord | Spotted Striker 20674 | -5/Warlord | P-80 Master assimilated allied QW-V9Y(g) 20682 | -5/Warlord | Destroyed B-86 Titan 20713 | -5/Warlord | Destroyed 7 combat bots 20720 | -5/Warlord | Build established: Hacker-Gunner 20850 | -5/Warlord | Spotted Striker 20850 | -5/Warlord | Spotted Striker 20850 | -5/Warlord | Spotted Executioner 20851 | -5/Warlord | Destroyed Executioner 20925 | -5/Warlord | Warlord base infiltrated, sounded retreat 21015 | -5/Warlord | Found Prototype Device 21015 | -5/Warlord | Identified Adv. Kinecellerator 21050 | -5/Warlord | Spotted Executioner 21050 | -5/Warlord | Spotted Executioner 21085 | -5/Warlord | Found Prototype Processor 21085 | -5/Warlord | Identified Exp. Core Analyzer 21106 | -5/Warlord | Discovered new exit (range 8) 21113 | -5/Warlord | Identified exit to Proximity Caves 21126 | -5/Warlord | Entered Proximity Caves 21128 | -4/Proximity Caves | Reached level 25 21130 | -4/Proximity Caves | Upgraded with Propulsion slot (x1) 21236 | -4/Proximity Caves | Attracted the attention of an 0b10 checkpoint 21357 | -4/Proximity Caves | Learned 12 Research zone layouts 21543 | -4/Proximity Caves | Learned location of Armory (-3) 21621 | -4/Proximity Caves | Build established: Scavenger-Gunner 21837 | -4/Proximity Caves | Entered Factory 21839 | -4/Factory | Loaded intel: 28 terminal locations 21977 | -4/Factory | Spotted B-86 Titan 21988 | -4/Factory | Destroyed B-86 Titan 22044 | -4/Factory | Reached level 26 22047 | -4/Factory | Upgraded with Power slot (x1) 22125 | -4/Factory | Discovered new exit (range 17) 22140 | -4/Factory | Identified exit to Extension 22141 | -4/Factory | Entered Extension 22226 | -4/Extension | Rescued a captive Derelict 22227 | -4/Extension | Rescued a captive Derelict 22235 | -4/Extension | Rescued a captive Derelict 22328 | -4/Extension | Rescued a captive Derelict 22328 | -4/Extension | Rescued a captive Derelict 22350 | -4/Extension | Rescued a captive Derelict 22351 | -4/Extension | Rescued a captive Derelict 22369 | -4/Extension | Rescued A7 22379 | -4/Extension | Rescued a captive Derelict 22379 | -4/Extension | Rescued a captive Derelict 22391 | -4/Extension | First assault squad dispatched 22525 | -4/Extension | Disrupted transfer network 22602 | -4/Extension | Spotted B-86 Titan 22611 | -4/Extension | Destroyed B-86 Titan 22627 | -4/Extension | Destroyed B-86 Titan 22684 | -4/Extension | Rescued a captive Derelict 22685 | -4/Extension | Rescued a captive Derelict 22719 | -4/Extension | Reached level 27 22821 | -4/Extension | Rescued a captive Derelict 23006 | -4/Extension | Rescued a captive Derelict 23007 | -4/Extension | Rescued a captive Derelict 23060 | -4/Extension | Discovered new exit (range 10) 23061 | -4/Extension | Discovered new exit (range 6) 23066 | -4/Extension | Identified exit to Cetus 23096 | -4/Extension | Entered Cetus 23096 | -4/Cetus | Accompanied by 16 allies (A7) 23101 | -4/Cetus | Acquired a Cetus Manufacturing Module code from A7 23116 | -4/Cetus | Spotted Cetus Guard 23117 | -4/Cetus | Spotted Cetus Guard 23120 | -4/Cetus | Spotted Cetus Guard 23120 | -4/Cetus | Spotted Cetus Guard 23127 | -4/Cetus | Destroyed Cetus Guard 23129 | -4/Cetus | Allies destroyed Cetus Guard 23132 | -4/Cetus | Allies destroyed Cetus Guard 23136 | -4/Cetus | Destroyed Cetus Guard 23175 | -4/Cetus | Escorted A7 to Cetus Mainframe 23182 | -4/Cetus | Discovered new exit (range 18) 23201 | -4/Cetus | Spotted Cetus Guard 23201 | -4/Cetus | Spotted Cetus Guard 23202 | -4/Cetus | Destroyed Cetus Guard 23204 | -4/Cetus | Spotted Cetus Guard 23205 | -4/Cetus | Destroyed Cetus Guard 23212 | -4/Cetus | Allies destroyed Cetus Guard 23212 | -4/Cetus | Spotted Cetus Guard 23216 | -4/Cetus | Destroyed Cetus Guard 23221 | -4/Cetus | Discovered new exit (range 19) 23229 | -4/Cetus | Met Revision 17 23275 | -4/Cetus | Identified exit to Archives 23298 | -4/Cetus | Entered Archives 23298 | -4/Archives | Accompanied by 15 allies (A7) 23303 | -4/Archives | Received a hacking code to weaken MAIN.C 23326 | -4/Archives | Reached level 28 23329 | -4/Archives | Discovered new exit (range 18) 23338 | -4/Archives | Upgraded with Utility slot (x1) 23349 | -4/Archives | Discovered new exit (range 19) 23372 | -4/Archives | Unable to access archive contents 23382 | -4/Archives | Discovered new exit (range 19) 23533 | -4/Archives | Identified exit to Hub_04(d) 23549 | -4/Archives | Entered Hub_04(d) 23549 | -4/Hub_04(d) | Accompanied by 13 allies 23549 | -4/Hub_04(d) | Discovered new exit (range 10) 23570 | -4/Hub_04(d) | Identified exit to Research 23594 | -4/Hub_04(d) | Identified exit to Garrison 23709 | -4/Hub_04(d) | Network Hub disabled 23734 | -4/Hub_04(d) | Spotted Lightning 23734 | -4/Hub_04(d) | Spotted Lightning 23771 | -4/Hub_04(d) | Entered Garrison 23771 | -4/Garrison | Accompanied by 5 allies 23782 | -4/Garrison | Triggered checkpoint 23813 | -4/Garrison | Garrison Relay disabled 23822 | -4/Garrison | Triggered checkpoint 23888 | -4/Garrison | Triggered checkpoint 23939 | -4/Garrison | Destroyed 8 combat bots 24008 | -4/Garrison | Destroyed 9 combat bots 24026 | -4/Garrison | Discovered exit to Research (range 8) 24040 | -4/Garrison | Triggered checkpoint 24065 | -4/Garrison | Garrison Relay disabled 24122 | -4/Garrison | Triggered checkpoint 24150 | -4/Garrison | Triggered checkpoint 24199 | -4/Garrison | Upgraded with Propulsion slot (x1) 24242 | -4/Garrison | Garrison Relay disabled 24283 | -4/Garrison | Discovered exit to Research (range 18) 24421 | -4/Garrison | Phase Generator disabled 24498 | -4/Garrison | Garrison Relay disabled 24523 | -4/Garrison | Discovered exit to Research (range 11) 24539 | -4/Garrison | Entered Research 24540 | -3/Research | Identified exit to Research 24541 | -3/Research | Reached level 29 24757 | -3/Research | Revision forces began assault on 0b10 24768 | -3/Research | Identified exit to Garrison 24776 | -3/Research | Met up with Revision 17++ 24784 | -3/Research | Entered Garrison 24794 | -3/Garrison | Discovered new exit (range 75) 24794 | -3/Garrison | Discovered new exit (range 50) 24794 | -3/Garrison | Discovered new exit (range 54) 24811 | -3/Garrison | Spotted Executioner 24814 | -3/Garrison | Destroyed Executioner 24839 | -3/Garrison | Found Prototype Processor 24839 | -3/Garrison | Identified Exp. Targeting Computer 24851 | -3/Garrison | Rewired Striker 24857 | -3/Garrison | Rewired Executioner 24982 | -3/Garrison | Triggered checkpoint 25002 | -3/Garrison | Garrison Relay disabled 25035 | -3/Garrison | Rescued a captive Derelict 25035 | -3/Garrison | Rescued a captive Derelict 25106 | -3/Garrison | Identified exit to Research 25107 | -3/Garrison | Attempted to access garrison exit controls, blocked by remote lockdown 25154 | -3/Garrison | Spotted B-86 Titan 25160 | -3/Garrison | Reached level 30 25163 | -3/Garrison | Destroyed B-86 Titan 25182 | -3/Garrison | Triggered checkpoint 25242 | -3/Garrison | Destroyed 12 combat bots 25264 | -3/Garrison | Triggered checkpoint 25305 | -3/Garrison | Garrison Relay disabled 25323 | -3/Garrison | Garrison Relay disabled 25445 | -3/Garrison | Attempted to access garrison exit controls, blocked by remote lockdown 25548 | -3/Garrison | Entered Research 25548 | -3/Research | Spotted B-86 Titan 25559 | -3/Research | Destroyed B-86 Titan 25798 | -3/Research | First assault squad dispatched 25880 | -3/Research | Identified exit to Armory 25880 | -3/Research | Identified exit to Quarantine 25913 | -3/Research | High security lockdown imminent 25960 | -3/Research | Garrison activated, responded to threat 25969 | -3/Research | Entered Quarantine 26109 | -3/Quarantine | Cryocooling Duct disabled 26112 | -3/Quarantine | Cryocooling Duct disabled 26124 | -3/Quarantine | Ambient heat levels rising (+20) 26124 | -3/Quarantine | Non-combat units ordered to evacuate 26127 | -3/Quarantine | Ambient heat levels rising (+20) 26127 | -3/Quarantine | Combat units ordered to evacuate 26172 | -3/Quarantine | Spotted Alpha 7 26210 | -3/Quarantine | Destroyed Alpha 7 26227 | -3/Quarantine | Quarantine Guard activated 26266 | -3/Quarantine | Found Alien Artifact 26266 | -3/Quarantine | Identified Hpw. Transdimensional Reconstructor 26266 | -3/Quarantine | Warped through subspace 26342 | -3/Quarantine | Spotted Quarantine Guard 26343 | -3/Quarantine | Destroyed Quarantine Guard 26367 | -3/Quarantine | Spotted Quarantine Guard 26368 | -3/Quarantine | Destroyed Quarantine Guard 26455 | -3/Quarantine | Found Hpw. Transdimensional Reconstructor 26469 | -3/Quarantine | Spotted Quarantine Guard 26470 | -3/Quarantine | Destroyed Quarantine Guard 26547 | -3/Quarantine | Spotted Quarantine Guard 26548 | -3/Quarantine | Destroyed Quarantine Guard 26553 | -3/Quarantine | Spotted Quarantine Guard 26561 | -3/Quarantine | Destroyed Quarantine Guard 26592 | -3/Quarantine | Spotted Quarantine Guard 26603 | -3/Quarantine | Destroyed Quarantine Guard 26609 | -3/Quarantine | Spotted Quarantine Guard 26611 | -3/Quarantine | Destroyed Quarantine Guard 26629 | -3/Quarantine | Found Prototype Device 26629 | -3/Quarantine | Identified Exp. EM Disruption Field 26690 | -3/Quarantine | Spotted Quarantine Guard 26695 | -3/Quarantine | Destroyed Quarantine Guard 26695 | -3/Quarantine | Reached level 31 26733 | -3/Quarantine | Spotted Quarantine Guard 26740 | -3/Quarantine | Destroyed Quarantine Guard 26782 | -3/Quarantine | Discovered exit to Research (range 18) 26782 | -3/Quarantine | Spotted Quarantine Guard 26792 | -3/Quarantine | Spotted Quarantine Guard 26795 | -3/Quarantine | Destroyed Quarantine Guard 26935 | -3/Quarantine | Destroyed Quarantine Guard 27031 | -3/Quarantine | Found Alien Artifact 27220 | -3/Quarantine | Spotted Quarantine Guard 27233 | -3/Quarantine | Destroyed Quarantine Guard 27274 | -3/Quarantine | Identified exit to Garrison 27274 | -3/Quarantine | Entered Garrison 27296 | -3/Garrison | Triggered checkpoint 27316 | -3/Garrison | Garrison Relay disabled 27349 | -3/Garrison | Spotted B-86 Titan 27363 | -3/Garrison | Destroyed B-86 Titan 27371 | -3/Garrison | Triggered checkpoint 27379 | -3/Garrison | Triggered checkpoint 27395 | -3/Garrison | Triggered checkpoint 27416 | -3/Garrison | Destroyed 15 combat bots 27497 | -3/Garrison | Garrison Relay disabled 27519 | -3/Garrison | Discovered exit to Research (range 12) 27598 | -3/Garrison | Triggered checkpoint 27651 | -3/Garrison | Discovered exit to Research (range 8) 27680 | -3/Garrison | Found embedded Infiltrators 27734 | -3/Garrison | Triggered checkpoint 27750 | -3/Garrison | Garrison Relay disabled 27849 | -3/Garrison | Garrison Relay disabled 27870 | -3/Garrison | Discovered exit to Research (range 13) 27883 | -3/Garrison | Entered Research 27883 | -2/Research | Accompanied by 2 allies 27883 | -2/Research | Warlord forces began assault on 0b10 27908 | -2/Research | Distinguished unit "The Professionals" dispatched to help 27908 | -2/Research | Distinguished unit "Golden Rifle" dispatched to help 27911 | -2/Research | Reached level 32 27911 | -2/Research | Met up with Warlord 27993 | -2/Research | Research machine network offline 28403 | -2/Research | Build established: Scavenger-Mutant 28494 | -2/Research | Found Exp. Core Analyzer 28516 | -2/Research | Spotted Striker 28518 | -2/Research | Spotted Executioner 28518 | -2/Research | Spotted Executioner 28527 | -2/Research | Spotted Executioner 28530 | -2/Research | Destroyed Executioner 28630 | -2/Research | Discovered new exit (range 8) 28641 | -2/Research | Entered Access 28641 | -1/Access | Accompanied by 1 ally 28643 | -1/Access | Reached level 33 28643 | -1/Access | Upgraded with Weapon slot (x1) 28655 | -1/Access | Identified exit to Garrison 28655 | -1/Access | Entered Garrison 28655 | -1/Garrison | Accompanied by 1 ally 28679 | -1/Garrison | Rewired B-75 Beast 28710 | -1/Garrison | Rewired B-86 Titan 28762 | -1/Garrison | Triggered checkpoint 28787 | -1/Garrison | Garrison Relay disabled 28807 | -1/Garrison | H-XX Assembler disabled 28824 | -1/Garrison | Reached level 34 28830 | -1/Garrison | Upgraded with Utility slot (x1) 28876 | -1/Garrison | Spotted B-99 Colossus 28878 | -1/Garrison | Triggered checkpoint 28893 | -1/Garrison | Triggered checkpoint 28902 | -1/Garrison | Triggered checkpoint 28904 | -1/Garrison | Core integrity fell below 50% 28914 | -1/Garrison | Destroyed 11 combat bots 28921 | -1/Garrison | Core integrity fell below 20% 28921 | -1/Garrison | Warped through subspace 28922 | -1/Garrison | Triggered checkpoint 28943 | -1/Garrison | Build established: Scavenger-Gunner 29011 | -1/Garrison | Found Antimissile System 29013 | -1/Garrison | Found Antimissile System 29026 | -1/Garrison | Discovered new exit (range 62) 29026 | -1/Garrison | Discovered new exit (range 26) 29026 | -1/Garrison | Discovered new exit (range 97) 29039 | -1/Garrison | Triggered checkpoint 29084 | -1/Garrison | Triggered checkpoint 29119 | -1/Garrison | Garrison Relay disabled 29162 | -1/Garrison | Reached level 35 29248 | -1/Garrison | Attempted to access garrison exit controls, blocked by remote lockdown 29321 | -1/Garrison | Destroyed 7 combat bots 29379 | -1/Garrison | Destroyed 8 combat bots 29393 | -1/Garrison | Destroyed B-99 Colossus 29482 | -1/Garrison | Triggered checkpoint 29528 | -1/Garrison | Triggered checkpoint 29569 | -1/Garrison | Entered Access 29718 | -1/Access | Destroyed 9 combat bots 29846 | -1/Access | First assault squad dispatched 29907 | -1/Access | Reached level 36 29907 | -1/Access | High security lockdown imminent 29928 | -1/Access | Destroyed 7 combat bots 29987 | -1/Access | High security lockdown engaged 30089 | -1/Access | Destroyed 9 combat bots 30157 | -1/Access | Discovered new exit (range 16) 30191 | -1/Access | Entered Command 30246 | -1/Command | Destroyed by Y-72 Warden with Quantum Rifle Last Messages --------------- 30227_ Acquired 52 matter. 30229_ Adv. System Restoration Module purges 1% system corruption (6%). 30229_ Adv. System Restoration Module expended. 30230_ Destroyed Imp. Antigrav System. 30230_ Destroyed Gamma Rifle. 30230_ P-80 Master suffers critical hit (Blast). 30230_ Destroyed Adv. Target Analyzer. 30231_ Acquired 3 matter. 30231_ Acquired 21 matter. 30233_ P-80 Master destroyed. 30234_ Acquired 24 matter. 30240_ Acquired Adv. Target Analyzer. 30241_ Acquired 10 matter. 30244_ HV Slug penetrates Y-72 Warden. 30244_ Y-72 Warden suffers critical hit (Destroy). 30244_ Destroyed Med. Treads. 30244_ Destroyed Adv. Heat Sink. 30245_ Acquired 20 matter. 30245_ Acquired 4 matter. [Achievement: Punisher] Map ----- +----------------------------------------------------+ | ?????????????????????????????????????????????????? | | ?????????????????????????????????????????????????? | | ?????????????????????????????????????????????????? | | ?????????????????????????????????????????????????? | | ?????????????????????????????????????????????????? | | ?????????????????????? ??????????????????????????? | | ?????????????????????? ??????????????????????????? | | ?????????????????????? ??????????????????????????? | | ?????????????????????? ??????????????????????????? | | ?????????????????????? ??????????????????????????? | | ?????????????????????? ??????????????????????????? | | ?????????????????????? ??????????????????????????? | | ?????????????????????? ###???????????????????????? | | ?????????????????????? ????????????????????????? | | ?????????????????????# ????????????????????????? | | ?????????????????????+ ????????????????????????? | | ?????????????????????# ?????????????????????????? | | ?????????????????????# ?????????????????????????? | | ?????????????????????# ?????????????????????????? | | ?????###########?????# #########+#???????????????? | | ?????#""""" #?????#%#; #???????????????? | | ?????#" " #?????# "#! #???????????????? | | ?????#" #????##%## "" #???????????????? | | ????##" " ######*% # """ #???????????????? | | ????#""" """ =%%; "T #???????????????? | | ?????# " ######!=[#@ """ #???????????????? | | ?????# #????##### "" #???????????????? | | ?????# #????????# % #???????????????? | | ?????# #????????#% #???????????????? | | ?????##### #####????????#Y########???????????????? | | ?????????# #????????????###??????????????????????? | | ?????????# #?????????????????????????????????????? | | ?????????# #?????????????????????????????????????? | | ?# ####### #?????????????????????????????????????? | | ?+ #?????????????????????????????????????? | | ?###########?????????????????????????????????????? | | ?????????????????????????????????????????????????? | | ?????????????????????????????????????????????????? | | ?????????????????????????????????????????????????? | | ?????????????????????????????????????????????????? | | ?????????????????????????????????????????????????? | | ?????????????????????????????????????????????????? | | ?????????????????????????????????????????????????? | | ?????????????????????????????????????????????????? | | ?????????????????????????????????????????????????? | | ?????????????????????????????????????????????????? | | ?????????????????????????????????????????????????? | | ?????????????????????????????????????????????????? | | ?????????????????????????????????????????????????? | | ?????????????????????????????????????????????????? | +----------------------------------------------------+ Best States ------------- Heat Dissipation 122 Coolant Potential 120 Energy Generation 92 Energy Capacity 1115 Matter Stores 600 Matter Capacity 1000 Sight Range 20 Robot Scan Range 40 Terrain Scan Range 16 Terrain Scan Density 610 ECM Strength 2 Jamming Range 16 Armor Coverage 150 Resistance: KI 15 Resistance: TH 10 Resistance: EX 10 Resistance: EM 15 Phase Shifting 15 Evasion (%) 70 Targeting Accuracy 12 Melee Accuracy 6 Target Analysis 8 Core Analysis 12 Recoil Reduction 6 Kinecelleration 50 Offensive Hacking 20 Defensive Hacking 10 Item Schematics ----------------- Adv. Assault Cannon | -7/Factory | Hacked Battle Rifle | -7/Zion | Free Slug Cannon | -7/Zion | Free Imp. Medium Armor Plating | -7/Zion | Archive Imp. System Restoration Module | -7/Zion | Archive Flak Gun | -7/Zion | Archive Hpw. Shock Rifle | -7/Zion | Archive Hvy. Laser | -7/Zion | Archive Adv. Sensor Array | -7/Zion | Archive Mak. Salvage Targeting Computer | -7/Zion | Archive Imp. Weapon Cycler | -7/Zion | Archive Tesla Rifle | -7/Zion | Archive Imp. EM Pulse Cannon | -7/Zion | Archive Imp. Medium Treads | -7/Zion | Archive Med. Treads | -7/Zion | Archive Mak. Transmission Jammer | -7/Zion | Archive Adv. Signal Interpreter | -7/Zion | Archive Gravmag System | -7/Zion | Archive Exp. EM Disruption Field | -3/Quarantine | Archive Exp. Melee Analysis Suite | -3/Quarantine | Archive Com. Mass Driver | -3/Quarantine | Archive Exp. Matter Compressor | -3/Quarantine | Archive Plasma Lance | -3/Quarantine | Archive Quantum Shading Machine | -3/Quarantine | Archive Robot Schematics ------------------ B-48 Gladiator | -7/Zion | Archive G-47 Trooper | -7/Zion | Archive L-41 Fighter | -7/Zion | Archive H-88 Terminator | -7/Zion | Archive O-32 Director | -3/Quarantine | Archive S-43 Plague | -3/Quarantine | Archive B-74 Champion | -3/Quarantine | Archive Fabricated ------------ X-62 Marksman | x2 | -7/Factory | Preloaded T-07 Excavator | x1 | -7/Factory | Preloaded Thermic Laser | x2 | -7/Factory | Preloaded L-31 Rogue | x3 | -7/Factory | Preloaded Alien Tech Used ----------------- Core Expander High-powered Transdimensional Reconstructor Achievements -------------- Great Explorer Punisher Challenges ------------ None RPGLIKE | -11 -10 -10 -9 -8 -8 -8 -8 -7 -7 -7 -7 -7 -7 -7 -6 -6 -6 -6 -6 -6 -6 -5 -5 -5 -5 -4 -4 -4 -4 -4 -4 -4 -3 -3 -3 -3 -3 -2 -1 -1 -1 -1 --------- Run | Jun Mat Min Mat Mat Gar Mat Gar Fac Gar Fac Low Low Zio Dee Pro Fac Was Fac Gar Fac DSF Fac Upp Upp War Pro Fac Ext Cet Arc Hub Gar Res Gar Res Qua Gar Res Acc Gar Acc Com Levels Raised 35 | . 1 1 3 3 4 . 1 1 2 . . . 1 . 1 . . 2 1 . . 1 . 1 . 1 1 1 . 1 . . 1 1 . 1 . 1 1 2 1 . XP Earned 56425 | 3000 2640 1539 4431 4489 5233 919 937 1384 2526 193 318 783 141 249 1233 737 67 2231 1536 . 276 1765 577 372 989 1267 1031 1949 459 280 302 801 1010 1479 246 741 679 1312 1442 3339 971 552 XP Spent 53705 | 2975 1510 1515 4500 4500 4480 1400 . 3025 3045 . . . . 1110 1250 . . . 3410 . 1700 . 525 2425 . 1580 800 . . 2300 . 1400 800 . . 2175 700 1500 1100 2725 1255 . Upgrades 119 | 12 7 10 13 12 10 2 . 6 8 . . . . 5 1 . . . 8 . 1 . 2 2 . 3 1 . . 1 . 1 1 . . 4 1 1 1 2 4 . Power Slot 2 | . . . . . . . . . 1 . . . . . . . . . . . . . . . . . 1 . . . . . . . . . . . . . . . Propulsion Slot 4 | 1 . . . 1 . . . . . . . . . . . . . . . . . . . . . 1 . . . . . 1 . . . . . . . . . . Utility Slot 8 | 1 . . 1 1 1 . . . . . . . . . . . . . . . 1 . . 1 . . . . . 1 . . . . . . . . . 1 . . Weapon Slot 3 | 1 . . . . . . . 1 . . . . . . . . . . . . . . . . . . . . . . . . . . . . . . 1 . . . Core Integrity 13 | . . 2 1 3 2 . . . . . . . . 2 . . . . . . . . . . . . . . . . . . . . . . . . . 1 2 . Heat Dissipation 11 | . 3 1 . 1 . . . . 2 . . . . 1 . . . . 1 . . . . . . 2 . . . . . . . . . . . . . . . . Energy Generation 3 | . . . 2 1 . . . . . . . . . . . . . . . . . . . . . . . . . . . . . . . . . . . . . . Energy Storage 4 | . 1 . 1 . . . . . . . . . . . . . . . 2 . . . . . . . . . . . . . . . . . . . . . . . Matter Storage 6 | . . 1 . . . . . . 1 . . . . . . . . . . . . . 2 . . . . . . . . . . . . 2 . . . . . . Mass Support 2 | . . . 1 1 . . . . . . . . . . . . . . . . . . . . . . . . . . . . . . . . . . . . . . Inventory Capacity 6 | 2 . . 1 . . . . . 1 . . . . . 1 . . . . . . . . . . . . . . . . . . . . . . 1 . . . . Sight Range 4 | . . 1 . . . . . . 1 . . . . 1 . . . . . . . . . . . . . . . . . . . . . . 1 . . . . . Sensor Range 19 | 6 . 2 1 1 . . . 2 . . . . . . . . . . 3 . . . . 1 . . . . . . . . . . . 1 . . . . 2 . Terrain Scan Density 6 | 1 . 2 2 1 . . . . . . . . . . . . . . . . . . . . . . . . . . . . . . . . . . . . . . Ranged Accuracy 7 | . 2 . 1 . 2 . . 1 . . . . . . . . . . 1 . . . . . . . . . . . . . . . . . . . . . . . Melee Accuracy 3 | . . . 2 . 1 . . . . . . . . . . . . . . . . . . . . . . . . . . . . . . . . . . . . . Hack Attack % 4 | . 1 1 . . . 2 . . . . . . . . . . . . . . . . . . . . . . . . . . . . . . . . . . . . Hack Defense % 2 | . . . . 1 . . . 1 . . . . . . . . . . . . . . . . . . . . . . . . . . . . . . . . . . KI Resistance % 3 | . . . . 1 1 . . . . . . . . . . . . . 1 . . . . . . . . . . . . . . . . . . . . . . . TH Resistance % 2 | . . . . . 2 . . . . . . . . . . . . . . . . . . . . . . . . . . . . . . . . . . . . . EX Resistance % 2 | . . . . . 1 . . . . . . . . 1 . . . . . . . . . . . . . . . . . . . . . . . . . . . . KI Damage % 4 | . . . . . . . . . 2 . . . . . . . . . . . . . . . . . . . . . . . 1 . . 1 . . . . . . TH Damage % 1 | . . . . . . . . 1 . . . . . . . . . . . . . . . . . . . . . . . . . . . . . . . . . . Protomatter Created 7510 | . 28 126 140 235 391 175 171 . 537 20 144 118 . 38 144 17 87 111 158 . 184 512 224 157 553 192 93 319 175 72 . 329 15 450 80 126 186 . . 643 560 . Integrity Restored 16008 | . 78 289 347 510 1548 525 573 135 1576 57 332 379 . 114 432 51 . 713 962 . 104 502 383 125 635 356 48 598 41 10 14 402 . 402 236 584 402 420 . 1242 883 . Core 12918 | . 75 228 296 413 1494 525 573 135 1075 50 202 354 . 114 432 51 . 623 471 . 79 494 180 96 383 163 30 432 34 4 11 308 . 239 189 539 320 232 . 1242 832 . Parts 3090 | . 3 61 51 97 54 . . . 501 7 130 25 . . . . . 90 491 . 25 8 203 29 252 193 18 166 7 6 3 94 . 163 47 45 82 188 . . 51 . Protomatter Decayed 8418 | . . . 23 . 44 3 . 37 103 45 90 28 . . . . 87 171 256 . 116 337 47 110 1568 66 11 536 300 60 139 285 15 583 812 . 19 2092 . 228 207 . Game ------ Seed TerrainNovaLance Manual? 0 Play Time 05:16:30 Cumulative 330.5 hours Start 2023.03.22 @ 03:27:12 End 2023.03.24 @ 03:44:11 Sessions 4 Manual Loads 0 Difficulty Rogue Special Mode Winter2019/RPGLIKE Game No. 213 Rogue 190 Adventurer 6 Explorer 17 Win Type - Total 25 Types 17/0/4/1/0/1/1/1/0 Lore% 95 Gallery% 94 Achievement% 78 Wizard Run 0 Options --------- ASCII 0 Keyboard 0 Movement Numpad Keybinds 0 Fullscreen 1 Font 12/Fuzzy Map View 83x54 Tactical HUD 1 Map Filters NONE Filters NONE Steam 1 RUN: 51ce8678-ef27-44fa-b871-49ad9bbde344